Cogmind - Beta 16.1 @@@ ROGUE MODE // 2026.05.03 @ 01:54:56 Player: Thqwib-Linux Result: Destroyed by Striker with Compact Linear Accelerator Performance ------------- Evolutions (8) 4000 Regions Visited (32) 6400 Robots Destroyed (206) 1030 Value Destroyed (8118) 8118 Prototype IDs (145) 2900 Alien Tech Used (6) 1200 Bonus (1784) 1784 TOTAL SCORE: 25432 Bonus ------- High Alert Combat Kills 3639 Follower Combat Kills 658 Hunted by Unchained 500 Forged Quantum Companion 2000 Registered with UFD 300 Met Optimus in HQ 500 Met Zhirov 300 MAIN.C Attacked Warlord 500 Met Optimus at Protoforge 1000 Friendly Fire -7613 Cogmind --------- Core Integrity 0/1450 Matter 300/300 Energy 28/100 System Corruption 10% Temperature Cool (2) Movement Hovering (56) Location -2/Protoforge Parts ------- > --- POWER (2) -------- (None) > --- PROPULSION (8) --- Concept Combat Aerolev Unit Concept Combat Aerolev Unit Concept Combat Aerolev Unit Concept Combat Aerolev Unit Concept Gyrokinetic System Concept Gyrokinetic System Concept Gyrokinetic System > --- UTILITY (10) ----- Experimental Armor Integrity Analyzer Femtoactuators Concept RG22 Armor Concept RG22 Armor Graphene Brace Improved System Guard > --- WEAPON (3) ------- Concept Deflector Sword Concept Deflector Sword Superquantum Companion > --- INVENTORY (5) ---- Experimental Energy Well (340) Stasis Canceller Concept RG22 Armor Crosscalibrator Peak State ------------ > --- POWER ------------ Particle Reactor Hybrid Graviton Reactor > --- PROPULSION ------- Concept Combat Aerolev Unit Concept Combat Aerolev Unit Concept Combat Aerolev Unit Concept Combat Aerolev Unit Concept Combat Aerolev Unit Concept Gyrokinetic System Concept Gyrokinetic System Concept Gyrokinetic System > --- UTILITY ---------- Advanced Melee Analysis Suite Concept Melee Reflex Suite Experimental Armor Integrity Analyzer Femtoactuators Experimental Reaction Control System Concept Core Shell Concept RG22 Armor Concept RG22 Armor Concept Energy Mantle Improved System Guard > --- WEAPON ----------- Concept Deflector Sword Concept Deflector Sword Superquantum Companion > --- INVENTORY -------- Experimental Energy Well Stasis Canceller Concept RG22 Armor Graphene Brace Crosscalibrator [Rating: 254] Favorites ----------- Power Cold Fusion Reactor Engine Ion Engine Power Core Light Fission Core Reactor Cold Fusion Reactor Propulsion Cooled Cesium-ion Thruster Treads Light Treads Leg Aluminum Leg Wheel Compact Wheel Hover Unit Concept Combat Aerolev Unit Flight Unit Cooled Cesium-ion Thruster Utility Hacking Suite Device Improved Heat Sink Storage Large Storage Unit Processor Advanced Melee Analysis Suite Hackware Hacking Suite Protection Hardened Light Armor Plating Artifact Phase Redirector Weapon Advanced Beam Cannon Energy Gun Beamcaster Energy Cannon Advanced Beam Cannon Ballistic Gun Assault Rifle Launcher Heavy Rocket Launcher Slashing Weapon Companion Sword Special Melee Weapon Improved Datajack Build | -11 -10 -10 -9 -9 -9 -9 -6 -6 -6 -6 -6 -6 -5 -5 -5 -5 -5 -5 -5 -4 -4 -4 -4 -4 -4 -4 -3 -3 -3 -2 -2 -2 ------- Run | Yrd Mat Min Mat Sto Rec Scr Fac Was Fac Low Low Zio Pro Fac Was Fac Upp Upp Zhi Pro Fac Was Fac Upp Upp War Pro Res Tes Res Qua Frg Slots Evolved 16 | . . . 2 . . . 6 . . . . . . 2 . . . . . . 2 . . . . . . 2 . 2 . . Power 1 | . . . . . . . . . . . . . . . . . . . . . . . . . . . . . . 1 . . Propulsion 6 | . . . . . . . 4 . . . . . . . . . . . . . 1 . . . . . . 1 . . . . Utility 8 | . . . 2 . . . 2 . . . . . . 2 . . . . . . 1 . . . . . . 1 . . . . Weapon 1 | . . . . . . . . . . . . . . . . . . . . . . . . . . . . . . 1 . . Parts Attached 189 | 3 10 6 8 10 . 3 17 1 6 2 . . 1 10 1 4 1 . 6 1 2 1 3 . . 7 . 1 15 4 10 56 Power 18 | . 2 . 2 1 . . 1 . 1 . . . . 1 . . . . 1 . . 1 . . . . . . . 2 1 5 Engine 5 | . 2 . 2 1 . . . . . . . . . . . . . . . . . . . . . . . . . . . . Core 3 | . . . . . . . 1 . 1 . . . . . . . . . . . . . . . . . . . . . . 1 Reactor 10 | . . . . . . . . . . . . . . 1 . . . . 1 . . 1 . . . . . . . 2 1 4 Propulsion 51 | 2 1 2 2 6 . . 6 . 2 . . . . 1 . 1 . . 3 . . . . . . 2 . . 3 1 . 19 Treads 7 | 1 . 1 1 4 . . . . . . . . . . . . . . . . . . . . . . . . . . . . Leg 1 | . . . . . . . . . . . . . . . . . . . . . . . . . . . . . . . . 1 Wheel 6 | 1 1 1 1 2 . . . . . . . . . . . . . . . . . . . . . . . . . . . . Hover 8 | . . . . . . . . . . . . . . . . . . . . . . . . . . . . . . . . 8 Flight 29 | . . . . . . . 6 . 2 . . . . 1 . 1 . . 3 . . . . . . 2 . . 3 1 . 10 Utility 89 | . 4 3 3 1 . 2 9 1 3 2 . . . 7 . 2 1 . 2 1 2 . 2 . . 3 . . 6 . 8 27 Device 38 | . 3 2 . . . . 2 1 1 1 . . . 2 . 1 . . . 1 1 . 2 . . 2 . . 3 . 5 11 Storage 9 | . 1 . . . . 2 2 . . . . . . . . . 1 . . . . . . . . . . . . . . 3 Processor 15 | . . . 1 . . . 1 . . . . . . 2 . . . . . . . . . . . 1 . . 1 . 2 7 Hackware 10 | . . . . . . . 3 . 2 . . . . 2 . 1 . . 1 . 1 . . . . . . . . . . . Protection 16 | . . 1 2 1 . . 1 . . 1 . . . 1 . . . . 1 . . . . . . . . . 2 . . 6 Artifact 1 | . . . . . . . . . . . . . . . . . . . . . . . . . . . . . . . 1 . Weapon 31 | 1 3 1 1 2 . 1 1 . . . . . 1 1 1 1 . . . . . . 1 . . 2 . 1 6 1 1 5 Energy Gun 7 | . 2 1 . . . . . . . . . . . . . . . . . . . . . . . 1 . . 3 . . . Energy Cannon 8 | . 1 . . 2 . . 1 . . . . . . . . 1 . . . . . . . . . 1 . 1 1 . . . Ballistic Gun 5 | 1 . . . . . . . . . . . . . . . . . . . . . . . . . . . . 2 . . 2 Ballistic Cannon . | . . . . . . . . . . . . . . . . . . . . . . . . . . . . . . . . . Launcher 4 | . . . 1 . . . . . . . . . 1 . 1 . . . . . . . . . . . . . . . . 1 Special Weapon . | . . . . . . . . . . . . . . . . . . . . . . . . . . . . . . . . . Impact Weapon . | . . . . . . . . . . . . . . . . . . . . . . . . . . . . . . . . . Slashing Weapon 5 | . . . . . . 1 . . . . . . . . . . . . . . . . . . . . . . . 1 1 2 Piercing Weapon . | . . . . . . . . . . . . . . . . . . . . . . . . . . . . . . . . . Special Melee Weapon 2 | . . . . . . . . . . . . . . 1 . . . . . . . . 1 . . . . . . . . . Unidentified Prototypes 45 | . . . . . . 1 2 1 . . . . . 2 1 . . . 4 . . 1 . . . 6 . . 10 . 3 14 Corrupted Parts 2 | . . . . . . . . . 2 . . . . . . . . . . . . . . . . . . . . . . . System Corruption 2 | . . . . . . . . . 2 . . . . . . . . . . . . . . . . . . . . . . . Parts Lost 39 | . 2 2 2 1 . . . . 1 . . . . . . 1 . . . . . . . . 1 . . . . 2 4 23 Power 6 | . 1 . 1 . . . . . . . . . . . . . . . . . . . . . . . . . . . 1 3 Propulsion 15 | . 1 1 1 1 . . . . . . . . . . . . . . . . . . . . 1 . . . . 1 . 9 Utility 18 | . . 1 . . . . . . 1 . . . . . . 1 . . . . . . . . . . . . . 1 3 11 Weapon . | . . . . . . . . . . . . . . . . . . . . . . . . . . . . . . . . . Highest Loss Streak 8 | . 1 2 1 1 . . . . 1 . . . . . . 1 . . . . . . . . 1 . . . . 2 2 8 To Critical Strikes . | . . . . . . . . . . . . . . . . . . . . . . . . . . . . . . . . . Average Backups 11 | 3 7 12 14 14 14 14 9 9 8 7 7 9 9 9 10 9 11 13 14 15 13 14 14 15 15 14 15 13 13 13 14 5 Power . | 1 . . . 1 1 . . 1 1 1 1 1 1 1 1 1 1 1 1 1 1 1 1 1 1 1 1 1 1 . . . Propulsion 2 | 2 5 6 4 5 5 5 . . . . . . . . 1 1 1 1 1 2 1 1 1 1 . . 1 . 1 1 . . Utility 5 | . . 1 3 3 4 7 5 5 4 3 3 4 5 4 5 5 7 9 9 9 8 9 9 10 10 10 10 9 9 8 8 3 Weapon 2 | . 1 4 4 3 2 1 1 2 2 2 2 2 2 2 2 2 1 1 2 1 2 2 2 2 2 2 2 2 1 2 3 1 Tool/Special . | . . . . . . . . . . . . . . . . . . . . . . . . . . . . . . . . . Unused Backups 50 | 9 4 1 5 10 2 1 . . 1 . . 1 . 3 . 2 . . . . . . . . . . . 1 4 . 2 4 Power 7 | 1 2 . . 1 . 1 . . . . . . . 1 . 1 . . . . . . . . . . . . . . . . Propulsion 16 | 4 1 . 2 6 . . . . . . . . . . . . . . . . . . . . . . . . 2 . 1 . Utility 12 | 1 1 . . . . . . . . . . 1 . 1 . . . . . . . . . . . . . 1 2 . 1 4 Weapon 14 | 3 . 1 3 3 2 . . . 1 . . . . 1 . . . . . . . . . . . . . . . . . . Tool/Special 1 | . . . . . . . . . . . . . . . . 1 . . . . . . . . . . . . . . . . Average Slot Usage (%) 92 | . 97 100 96 99 100 92 80 93 87 93 93 93 93 91 94 94 89 88 89 94 93 94 91 89 85 89 94 94 94 90 85 83 Engine 5 | . 13 14 10 11 11 11 1 . . . . . . . . . . . . . . . . . . . . . . . . . Reactor 2 | . . . . . . . . . . . . . . 2 5 5 5 5 5 5 5 5 5 5 5 5 5 4 3 8 8 7 Treads 5 | . 13 14 11 11 11 11 . . . . . . . . . . . . . . . . . . . . . . . . . . Wheel 5 | . 14 13 10 11 11 11 . . . . . . . . . . . . . . . . . . . . . . . . . . Hover 1 | . . . . . . . . . . . . . . . . . . . . . . . . . . . . . . . . 12 Flight 15 | . . . . . . . 31 40 39 40 40 40 40 31 29 29 29 29 29 29 31 31 29 31 31 32 36 38 38 33 29 14 Device 9 | . 12 9 11 11 11 10 5 6 1 6 6 6 6 9 5 5 5 5 5 4 5 5 5 5 1 4 5 8 8 7 9 14 Storage 7 | . 14 14 11 11 11 11 6 6 6 6 6 6 6 5 5 5 5 5 5 5 5 5 5 5 5 5 5 4 4 4 4 2 Processor 10 | . . . 8 11 11 6 3 6 6 6 6 6 6 10 17 17 17 17 17 17 15 15 15 15 15 15 15 14 14 13 13 17 Hackware 6 | . . . . . . . 17 20 20 13 13 13 13 11 11 11 11 11 12 17 20 21 21 21 21 21 21 19 19 17 14 1 Protection 4 | . . 4 10 10 11 10 1 . . 5 6 6 6 4 5 4 1 . . . . . . . . . . . . . . 3 Energy Gun 4 | . 14 14 11 10 11 8 . . . . . . . . . . . . . . . . . . . . . . . . . . Energy Cannon 4 | . 8 14 11 11 11 8 . . . . . . . . . . . . . . . . . . . . . . . . . . Slashing Weapon 3 | . . . . . . 2 6 6 6 6 6 6 5 5 5 4 4 5 5 5 5 5 5 5 5 5 5 4 4 4 4 6 Peak Build Rating 254 | 6 12 17 22 26 26 26 57 61 63 60 60 62 65 83 83 82 83 80 97 93 100 102 108 100 100 117 113 130 146 156 155 254 Average Rating 71 | 6 9 12 20 23 25 24 46 57 56 60 60 61 61 74 78 79 79 79 84 91 98 99 98 97 89 102 110 122 127 142 148 177 On Entrance 72 | 6 6 12 17 22 25 26 22 57 57 58 60 60 62 62 78 78 81 79 79 91 93 99 99 100 97 88 113 110 123 134 138 153 Avg Prop Armor Cover (%) 6 | 13 12 11 10 7 9 9 12 . . . . . . 1 . . . . . . 2 2 2 2 2 3 3 6 6 . 2 3 Naked Turns . | . . . . . . . . . . . . . . . . . . . . . . . . . . . . . . . . . Heaviest Build 61 | 13 31 35 43 43 43 43 38 22 22 32 32 32 35 32 31 37 38 44 40 44 41 38 44 37 37 36 35 36 36 58 54 61 Greatest Support 128 | 20 16 40 16 20 12 12 31 31 42 42 33 33 42 45 36 51 51 51 39 51 45 39 60 45 57 53 46 51 55 72 72 128 Greatest Overweight (x) 3 | . 1 2 2 3 3 3 3 . . . . . 1 1 . 1 . 1 1 1 . . . . . . . . . . . 1 Average Overweight (x) . | . . 1 2 2 3 3 . . . . . . . . . . . . . . . . . . . . . . . . . . Largest Inventory Capacity 35 | 8 15 15 15 15 15 35 15 10 10 10 10 10 10 10 10 10 15 15 15 15 15 15 15 15 15 15 15 15 15 15 15 25 Average Capacity 13 | 8 14 15 15 15 15 15 10 10 10 10 10 10 10 10 10 10 14 15 15 15 15 15 15 15 15 15 15 15 15 15 15 10 Most Carried 15 | 6 12 15 15 15 15 15 15 10 10 7 7 10 10 10 10 10 13 13 15 15 14 15 15 15 15 15 15 15 15 15 15 15 Average Carried 11 | 3 7 12 14 14 14 14 9 9 8 7 7 9 9 9 10 9 11 13 14 15 13 14 14 15 14 14 15 14 14 14 14 6 Final Capacity 15 | 8 15 15 15 15 15 15 10 10 10 10 10 10 10 10 10 10 15 15 15 15 15 15 15 15 15 15 15 15 15 15 15 5 Final Carried 15 | 3 11 14 15 14 14 15 9 9 8 7 7 10 10 10 10 10 13 13 15 15 14 14 15 15 15 15 15 15 15 14 13 4 Class Distribution -------------------- 26% | Mutant 23% | Hacker-Scout 13% | Hacker-Sprinter 11% | Scavenger-Mutant 10% | Commander-Mutant 3% | Hacker-Ninja 3% | Scavenger-Gladiator 3% | Scavenger-Sprinter Dominant Class ---------------- Mutant | -10/Materials Mutant | -10/Mines Scavenger-Mutant | -9/Materials Commander-Mutant | -9/Storage Mutant | -9/Recycling Mutant | -9/Scraptown Hacker-Sprinter | -6/Factory Hacker-Sprinter | -6/Waste Hacker-Sprinter | -6/Factory Hacker-Sprinter | -6/Lower Caves Hacker-Sprinter | -6/Lower Caves Hacker-Sprinter | -6/Zion Hacker-Sprinter | -5/Proximity Caves Hacker-Sprinter | -5/Factory Hacker-Scout | -5/Waste Hacker-Scout | -5/Factory Hacker-Scout | -5/Upper Caves Hacker-Scout | -5/Upper Caves Hacker-Scout | -5/Zhirov Hacker-Sprinter | -4/Proximity Caves Hacker-Scout | -4/Factory Hacker-Scout | -4/Waste Hacker-Scout | -4/Factory Hacker-Scout | -4/Upper Caves Hacker-Sprinter | -4/Upper Caves Hacker-Assassin | -4/Warlord Hacker-Scout | -3/Proximity Caves Hacker-Scout | -3/Research Hacker-Scout | -3/Testing Hacker-Scout | -2/Research Hacker-Ninja | -2/Quarantine Scavenger-Mutant | -2/Protoforge Resources | -11 -10 -10 -9 -9 -9 -9 -6 -6 -6 -6 -6 -6 -5 -5 -5 -5 -5 -5 -5 -4 -4 -4 -4 -4 -4 -4 -3 -3 -3 -2 -2 -2 ----------- Run | Yrd Mat Min Mat Sto Rec Scr Fac Was Fac Low Low Zio Pro Fac Was Fac Upp Upp Zhi Pro Fac Was Fac Upp Upp War Pro Res Tes Res Qua Frg Matter Collected 4656 | 239 269 121 113 120 . 60 200 . 90 45 . . 238 130 30 187 58 116 . 66 99 193 104 20 15 . 48 132 190 110 226 1437 Remotely . | . . . . . . . . . . . . . . . . . . . . . . . . . . . . . . . . . Salvage Created 9670 | 87 729 285 701 754 169 . 178 . 145 . . . 92 327 799 462 . 59 . . 99 806 155 . . . 13 298 466 454 253 2339 Parts 451 | 4 38 12 41 44 12 . 12 . 6 . . . 10 15 32 18 . . . . 10 27 4 . . . . 10 18 16 15 107 Haulers Intercepted 19 | . 1 . 2 4 . . . . . . . . . 2 . 2 . . . . . . 1 . . . . 2 3 1 1 . Recyclers Shooed 6 | 1 . 2 2 1 . . . . . . . . . . . . . . . . . . . . . . . . . . . . Parts Field Recycled . | . . . . . . . . . . . . . . . . . . . . . . . . . . . . . . . . . Retrieved Matter . | . . . . . . . . . . . . . . . . . . . . . . . . . . . . . . . . . Parts Self-Destructed 11 | . . . . . . . . . . . . . 8 . . . 1 2 . . . . . . . . . . . . . . Prevented 8 | . . . . . . . . . . . . . . . . . 3 5 . . . . . . . . . . . . . . Parts Restored 8 | . . . . . . . . . . . . . . . . . . . . . . . . . . . . . . . . 8 Faulty 8 | . . . . . . . . . . . . . . . . . . . . . . . . . . . . . . . . 8 Kills | -11 -10 -10 -9 -9 -9 -9 -6 -6 -6 -6 -6 -6 -5 -5 -5 -5 -5 -5 -5 -4 -4 -4 -4 -4 -4 -4 -3 -3 -3 -2 -2 -2 ------- Run | Yrd Mat Min Mat Sto Rec Scr Fac Was Fac Low Low Zio Pro Fac Was Fac Upp Upp Zhi Pro Fac Was Fac Upp Upp War Pro Res Tes Res Qua Frg Combat Hostiles Destroyed 106 | . 17 3 13 10 3 . 2 . . . . . 4 . . 5 . . . . . . . . . . 2 . 2 2 . 43 Melee 34 | . . . . . . . 2 . . . . . . . . . . . . . . . . . . . 2 . 1 . . 29 Guns 28 | . 12 1 6 5 2 . . . . . . . . . . . . . . . . . . . . . . . . 2 . . Cannons 25 | . 5 1 7 5 1 . . . . . . . . . . . . . . . . . . . . . . . 1 . . 5 AOE 16 | . . . . . . . . . . . . . 4 . . 5 . . . . . . . . . . . . . . . 7 Classes Destroyed 23 | 2 5 1 1 1 . . 1 . . . . . 1 . 3 . . . . . . . . . . . 1 . 2 . . 5 Worker 7 | . . 2 . 1 . . 1 . . . . . . . . . . . . . 2 . . . . . . . . 1 . . Builder 5 | . . . . 1 . . . . . . . . . . . 1 . . . . . . . . . . . . 1 . 2 . Tunneler 2 | 1 . . . . . . . . . . . . . . . . . . . . 1 . . . . . . . . . . . Hauler 19 | . 1 . 2 4 . . . . . . . . . 2 . 2 . . . . . . 1 . . . . 2 3 1 1 . Recycler 6 | 1 . 1 . 1 . . . . 1 . . . . . . 1 . . . . . . . . . . . . . 1 . . Minesweeper 1 | . . . . . . . . . . . . . 1 . . . . . . . . . . . . . . . . . . . Operator 4 | . 1 . 1 . . . . . . . . . . 1 . 1 . . . . . . . . . . . . . . . . Drone 4 | . . . . . . . . . . . . . . . . . . . . . . . . . . . 2 . . . . 2 Watcher 25 | . 1 . . 2 . . 1 . 1 . . . . 3 . 3 . . . . 1 . 1 . . . . 2 2 1 3 4 Swarmer 15 | . 3 . . 3 . . . . . . . . 4 . . 5 . . . . . . . . . . . . . . . . Grunt 38 | . 14 3 9 3 . . . . . . . . . . . . . . . . . . . . . . . . . 1 . 8 Duelist 2 | . . . . . . . . . . . . . . . . . . . . . . . . . . . . . . . . 2 Researcher 4 | . . . . . . . . . . . . . . . . . . . . . . . . . . . . . 1 . . 3 Sentry 17 | . . . 4 4 3 . 1 . . . . . . . . . . . . . . . . . . . . . . 1 . 4 Hunter 8 | . . . . . . . 1 . . . . . . . . . . . . . . . . . . . . . . . . 7 Programmer 7 | . . . . . . . . . . . . . . . . . . . . . . . . . . . . . 2 . . 5 Hotshot 2 | . . . . . . . . . . . . . . . . . . . . . . . . . . . . . . . . 2 Decapitator 7 | . . . . . . . . . . . . . . . . . . . . . . . . . . . . . . . . 7 Striker 1 | . . . . . . . . . . . . . . . . . . . . . . . . . . . . . . . . 1 V-Series 5 | . . . . . . . . . . . . . . . . . . . . . . . . . . . . . . . . 5 Tinkerer 1 | . . . . . . . . . . . . . . . . . . . . . . . . . . . . . . . . 1 Surgeon 4 | . . . . . . . . . . . . . . . 2 . . . . . . 2 . . . . . . . . . . Wasp 3 | . . . . . . . . . . . . . . . 3 . . . . . . . . . . . . . . . . . Thug 13 | . . . . . . . . . . . . . . . 6 . . . . . . 7 . . . . . . . . . . Savage 4 | . . . . . . . . . . . . . . . 2 . . . . . . 2 . . . . . . . . . . Martyr 3 | . . . . . . . . . . . . . . . 2 . . . . . . 1 . . . . . . . . . . Best Kill Streak 14 | 2 4 2 6 6 1 . 2 . 1 . . . 4 1 . 10 . . . . 3 . 1 . . . 2 2 4 3 2 14 Combat Bots Only 12 | . 3 2 6 4 1 . 2 . . . . . 4 . . 5 . . . . . . . . . . 2 . 2 2 . 12 Max Kills in Single Turn 9 | 2 1 1 1 2 1 . 1 . 1 . . . 2 1 1 3 . . . . 1 1 1 . . . 1 1 1 1 1 9 Gunslinging . | . . . . . . . . . . . . . . . . . . . . . . . . . . . . . . . . . Exploded 7 | . . . . . . . . . . . . . 2 . . 3 . . . . . . . . . . . . . . . 7 Melee 2 | . . . . . . . 1 . . . . . . . . . . . . . . . . . . . 1 . 1 . . 2 Uniques/NPCs Destroyed . | . . . . . . . . . . . . . . . . . . . . . . . . . . . . . . . . . Combat | -11 -10 -10 -9 -9 -9 -9 -6 -6 -6 -6 -6 -6 -5 -5 -5 -5 -5 -5 -5 -4 -4 -4 -4 -4 -4 -4 -3 -3 -3 -2 -2 -2 -------- Run | Yrd Mat Min Mat Sto Rec Scr Fac Was Fac Low Low Zio Pro Fac Was Fac Upp Upp Zhi Pro Fac Was Fac Upp Upp War Pro Res Tes Res Qua Frg Hostile Shots Fired 811 | . 72 19 19 37 4 . 50 . 3 3 . . 13 4 . 30 . 3 . 10 6 . 34 . 3 4 . 2 4 20 21 450 Missed 385 | . 20 4 5 12 . . 20 . 1 3 . . 10 3 . 16 . 2 . 6 6 . 19 . 1 2 . . 3 9 8 235 Deflected 6 | . . . . . . . . . . . . . . . . . . . . . . . . . . . . . . . 1 5 Hits 426 | . 52 15 14 25 4 . 30 . 2 . . . 3 1 . 14 . 1 . 4 . . 15 . 2 2 . 2 1 11 13 215 Melee 8 | . . . . . . . . . . . . . . . . . . . . . . . . . . . . . . . . 8 Projectile 418 | . 52 15 14 25 4 . 30 . 2 . . . 3 1 . 14 . 1 . 4 . . 15 . 2 2 . 2 1 11 13 207 AOE 4 | . . . . . . . . . . . . . . . . . . . . . . . . . . . . . . . . 4 Critical Strikes 25 | . 2 1 . 3 . . . . 1 . . . . . . . . . . . . . . . . . . 1 . . 1 16 Actively Blocked 16 | . . . . . . . . . . . . . . . . . . . . . . . . . . . . . . . . 16 Damage Taken 9703 | . 582 216 208 339 60 . 274 . 37 . . . 38 30 33 248 . 20 . 44 9 30 262 . 38 46 . 56 57 280 387 6409 Core 2106 | . 115 10 14 35 . . 98 . . . . . . 7 5 81 . 20 . 33 9 30 111 . . . . 27 57 50 50 1354 Absorbed by Shields 336 | . . . . . . . 28 . . . . . . . . . . . . . . . . . . . . . . . . 308 Redirected to Shielding 143 | . . . . . . . . . . . . . . . . . . . . . . . . . . . . . . . . 143 Ignored by Resistances 11 | . . . . . . . . . . . . . 11 . . . . . . . . . . . . . . . . . . . Regen/Repaired (Parts) 1244 | . 104 . 5 115 . . . . 9 . . . . . . 17 . . . . . 4 22 . . 18 . . 93 2 . 855 Core Remaining (%) 83 | 100 . 50 . . . 87 . . . . . . 88 . . . . . . 85 . . . . . . 86 . 86 . . . Volleys Fired 246 | 3 63 22 39 46 5 . . . . . . . 12 . . 12 4 4 . 3 . . 1 . . . . 2 3 7 3 17 Largest 2 | 2 2 2 2 2 2 . . . . . . . 1 . . 1 1 1 . 1 . . 1 . . . . 1 1 1 1 1 Hottest 143 | 60 108 143 143 143 143 . . . . . . . 39 . . 105 105 39 . 39 . . 39 . . . . 100 100 50 100 100 Shots Fired 422 | 6 126 44 77 91 10 . . . . . . . 12 . . 12 4 4 . 3 . . 1 . . . . 2 3 7 3 17 Gun 234 | 6 111 22 38 45 5 . . . . . . . . . . . . . . . . . . . . . . . . 7 . . Cannon 162 | . 15 22 38 46 5 . . . . . . . . . . 9 3 . . . . . . . . . . 2 3 . 3 16 Launcher 26 | . . . 1 . . . . . . . . . 12 . . 3 1 4 . 3 . . 1 . . . . . . . . 1 Special . | . . . . . . . . . . . . . . . . . . . . . . . . . . . . . . . . . Kinetic 58 | 3 48 . . . . . . . . . . . . . . . . . . . . . . . . . . . . 7 . . Thermal 315 | 3 78 44 76 91 10 . . . . . . . . . . 9 3 . . . . . . . . . . . . . . 1 Explosive 25 | . . . 1 . . . . . . . . . 12 . . 3 1 4 . 3 . . 1 . . . . . . . . . Electromagnetic . | . . . . . . . . . . . . . . . . . . . . . . . . . . . . . . . . . Entropic 24 | . . . . . . . . . . . . . . . . . . . . . . . . . . . . 2 3 . 3 16 Robot Hit Streak 12 | 3 8 11 7 7 6 . . . . . . . 1 . . 1 . . . . . . . . . . . . 2 12 . . Robot Miss Streak 5 | 1 5 1 3 3 1 . . . . . . . 3 . . 1 . . . . . . . . . . . . . 1 . . Penetration Max . | . . . . . . . . . . . . . . . . . . . . . . . . . . . . . . . . . Secondary Targets 2 | . 2 . . . . . . . . . . . . . . . . . . . . . . . . . . . . . . . Max Gunslinging Chain 1 | . 1 . . . . . . . . . . . . . . . . . . . . . . . . . . . . . . . Autonomous 16 | . . . . . . . . . . . . . . . . . . . . . . . . . . . . . 1 . 1 14 Shots Hit Robots 473 | 4 79 34 48 50 7 . 7 . 2 . . . 4 10 38 15 . . . . 7 31 2 . . . 2 8 13 12 8 92 Core Hits 224 | 3 35 9 17 19 3 . 4 . 2 . . . 5 4 16 16 . 1 . . 3 13 1 . . . 1 3 9 6 6 48 Critical Kills 3 | . . . . . . . . . . . . . . . . . . . . . . . . . . . . . . 3 . . Critical Parts Destroyed 3 | . . . . . . . . . . . . . . . . . . . . . . . . . . . . . . 3 . . Critical Strikes 19 | . . . 4 3 . . . . . . . . . . 2 . . . . . . 2 . . . . . . 1 7 . . Burn 7 | . . . 4 3 . . . . . . . . . . . . . . . . . . . . . . . . . . . . Destroy 7 | . . . . . . . . . . . . . . . . . . . . . . . . . . . . . . 7 . . Sunder 1 | . . . . . . . . . . . . . . . . . . . . . . . . . . . . . 1 . . . Melee Attacks 493 | . . . . . . . 21 . 5 . 1 . 8 31 38 58 1 2 . 2 15 31 20 . . 1 3 30 30 16 30 150 Impact . | . . . . . . . . . . . . . . . . . . . . . . . . . . . . . . . . . Slashing 491 | . . . . . . . 21 . 5 . 1 . 8 30 38 58 1 2 . 2 14 31 20 . . 1 3 30 30 16 30 150 Piercing . | . . . . . . . . . . . . . . . . . . . . . . . . . . . . . . . . . Sneak Attacks 104 | . . . . . . . 1 . 1 . . . 1 4 38 2 . . . . 4 31 1 . . . . 3 3 3 3 9 Combat Hostiles 2 | . . . . . . . . . . . . . . . . . . . . . . . . . . . . . . . . 2 Follow-up Attacks 9 | . . . . . . . . . . . . . . . . . . . . . . . . . . . . . . . . 9 Martial Strikes 18 | . . . . . . . . . . . . . . . . . . . . . . . . . . . . . . . . 18 Damage Inflicted 31882 | 52 1036 545 1048 1131 165 . 375 . 130 . . . 356 633 2783 1414 . 108 . 2 488 2450 127 . . . 134 794 1164 734 875 15338 Guns 2436 | 52 847 216 596 552 83 . . . . . . . . . . . . . . . . . . . . . . . . 90 . . Cannons 3137 | . 189 329 452 579 82 . . . . . . . . . . . . . . . . . . . . . . . 172 . 81 1253 Explosions 6485 | . . . . . . . . . . . . . 174 . . 578 . 108 . 2 . . . . . . . . . . . 5623 Melee 19824 | . . . . . . . 375 . 130 . . . 182 633 2783 836 . . . . 488 2450 127 . . . 134 794 992 644 794 8462 Ramming . | . . . . . . . . . . . . . . . . . . . . . . . . . . . . . . . . . Kinetic 472 | 30 352 . . . . . . . . . . . . . . . . . . . . . . . . . . . . 90 . . Thermal 9218 | 22 684 545 1048 1131 165 . . . . . . . . . . . . . . . . . . . . . . . . . . 5623 Explosive 862 | . . . . . . . . . . . . . 174 . . 578 . 108 . 2 . . . . . . . . . . . . Electromagnetic . | . . . . . . . . . . . . . . . . . . . . . . . . . . . . . . . . . Impact . | . . . . . . . . . . . . . . . . . . . . . . . . . . . . . . . . . Slashing 19824 | . . . . . . . 375 . 130 . . . 182 633 2783 836 . . . . 488 2450 127 . . . 134 794 992 644 794 8462 Piercing . | . . . . . . . . . . . . . . . . . . . . . . . . . . . . . . . . . Entropic 81 | . . . . . . . . . . . . . . . . . . . . . . . . . . . . . 81 . . . Phasic 1425 | . . . . . . . . . . . . . . . . . . . . . . . . . . . . . 91 . 81 1253 Highest Corruption 10 | . . 1 . . . . . . 2 2 2 2 . . . . . . . . . . . . . . . . 1 . . 10 Average Corruption 3 | . . 1 . . . . . . 1 2 2 2 . . . . . . . . . . . . . . . . 1 . . 5 Corruption Purged . | . . . . . . . . . . . . . . . . . . . . . . . . . . . . . . . . . Corruption Blocked . | . . . . . . . . . . . . . . . . . . . . . . . . . . . . . . . . . Effects 28 | . . 1 . . . . . . 2 . . . . . . . . . . . . . . . . . . . . . . 25 Message Errors 5 | . . . . . . . . . . . . . . . . . . . . . . . . . . . . . . . . 5 Matter Fused 8 | . . . . . . . . . 1 . . . . . . . . . . . . . . . . . . . . . . 7 Heat Flow Errors 6 | . . 1 . . . . . . 1 . . . . . . . . . . . . . . . . . . . . . . 4 Energy Discharges 2 | . . . . . . . . . . . . . . . . . . . . . . . . . . . . . . . . 2 Data Loss (minor) 3 | . . . . . . . . . . . . . . . . . . . . . . . . . . . . . . . . 3 Data Loss (major) 2 | . . . . . . . . . . . . . . . . . . . . . . . . . . . . . . . . 2 Misdirections 2 | . . . . . . . . . . . . . . . . . . . . . . . . . . . . . . . . 2 Overload Shots . | . . . . . . . . . . . . . . . . . . . . . . . . . . . . . . . . . Overflow Damage 3564 | . . . . 1 . . 13 . . . . . 80 98 152 102 . 32 . . 62 151 52 . . . 63 158 27 276 96 2201 Projectiles 77 | . . . . 1 . . . . . . . . . . . . . . . . . . . . . . . . . . . 76 Explosions 1010 | . . . . . . . . . . . . . . . . 18 . 32 . . . . . . . . . . . . . 960 Melee 2477 | . . . . . . . 13 . . . . . 80 98 152 84 . . . . 62 151 52 . . . 63 158 27 276 96 1165 Knockbacks . | . . . . . . . . . . . . . . . . . . . . . . . . . . . . . . . . . Impact . | . . . . . . . . . . . . . . . . . . . . . . . . . . . . . . . . . Kinetic . | . . . . . . . . . . . . . . . . . . . . . . . . . . . . . . . . . Secondary . | . . . . . . . . . . . . . . . . . . . . . . . . . . . . . . . . . Self-Inflicted Damage 67 | . . . . . . . . . . . . . . . . 44 . . . 23 . . . . . . . . . . . . Shots 3 | . . . . . . . . . . . . . . . . 2 . . . 1 . . . . . . . . . . . . Rammed . | . . . . . . . . . . . . . . . . . . . . . . . . . . . . . . . . . Targets Rammed . | . . . . . . . . . . . . . . . . . . . . . . . . . . . . . . . . . Kicked . | . . . . . . . . . . . . . . . . . . . . . . . . . . . . . . . . . Crushed . | . . . . . . . . . . . . . . . . . . . . . . . . . . . . . . . . . Highest Temperature 337 | . 54 318 225 337 87 . . . 237 170 . . . 41 . 141 56 36 . 105 . . 177 . 138 148 . 138 . 282 196 173 Average Temperature 68 | . 17 86 65 87 43 . . . 87 82 . . . 25 . 37 28 36 . 49 . . 73 . 56 148 . 84 . 50 80 72 Received Heat Transfer 1371 | . 303 129 93 123 18 . 15 . 36 . . . . . . . . 9 . . . . 39 . 9 . . 9 . 54 54 480 Effects 1 | . . 1 . . . . . . . . . . . . . . . . . . . . . . . . . . . . . . Matter Decay 1 | . . 1 . . . . . . . . . . . . . . . . . . . . . . . . . . . . . . Siege Activations . | . . . . . . . . . . . . . . . . . . . . . . . . . . . . . . . . . Martial Activations . | . . . . . . . . . . . . . . . . . . . . . . . . . . . . . . . . . Shielding Activations . | . . . . . . . . . . . . . . . . . . . . . . . . . . . . . . . . . Robots Disrupted 1 | . . . . . . . . . . . . . . . 1 . . . . . . . . . . . . . . . . . Combat Hostiles . | . . . . . . . . . . . . . . . . . . . . . . . . . . . . . . . . . Robots Corrupted . | . . . . . . . . . . . . . . . . . . . . . . . . . . . . . . . . . Combat Hostiles . | . . . . . . . . . . . . . . . . . . . . . . . . . . . . . . . . . Parts Fried . | . . . . . . . . . . . . . . . . . . . . . . . . . . . . . . . . . Impact Corruptions . | . . . . . . . . . . . . . . . . . . . . . . . . . . . . . . . . . Robots Melted 1 | . . 1 . . . . . . . . . . . . . . . . . . . . . . . . . . . . . . Combat Hostiles 1 | . . 1 . . . . . . . . . . . . . . . . . . . . . . . . . . . . . . Parts Melted 15 | . 4 1 3 4 1 . . . . . . . . . . . . . . . . . . . . . . . . . . 2 Heat Transferred 7358 | 50 1458 1054 2146 2220 296 . . . . . . . . . . . . . . . . . . . . . . . . . . 134 Parts Sabotaged . | . . . . . . . . . . . . . . . . . . . . . . . . . . . . . . . . . Parts Stolen . | . . . . . . . . . . . . . . . . . . . . . . . . . . . . . . . . . Parts Stripped 7 | . . . . . . . . . . . . . . . . . . . . . . . . . . . . . . . . 7 Power Chain Reactions . | . . . . . . . . . . . . . . . . . . . . . . . . . . . . . . . . . Alert | -11 -10 -10 -9 -9 -9 -9 -6 -6 -6 -6 -6 -6 -5 -5 -5 -5 -5 -5 -5 -4 -4 -4 -4 -4 -4 -4 -3 -3 -3 -2 -2 -2 ------- Run | Yrd Mat Min Mat Sto Rec Scr Fac Was Fac Low Low Zio Pro Fac Was Fac Upp Upp Zhi Pro Fac Was Fac Upp Upp War Pro Res Tes Res Qua Frg Maximum Alert Level 5 | . . . . . . . . . . . . . . . . 2 . . . . . . . . . . . 1 1 1 1 5 Low Security (%) 76 | 100 100 100 100 100 100 . 100 100 100 . . . . 100 100 74 . . . . 100 100 100 . . . . 90 56 60 70 . Level 1 9 | . . . . . . . . . . . . . . . . 22 . . . . . . . . . . . 9 43 39 29 22 Level 2 . | . . . . . . . . . . . . . . . . 3 . . . . . . . . . . . . . . . . Level 3 . | . . . . . . . . . . . . . . . . . . . . . . . . . . . . . . . . . Level 4 . | . . . . . . . . . . . . . . . . . . . . . . . . . . . . . . . . . Level 5 13 | . . . . . . . . . . . . . . . . . . . . . . . . . . . . . . . . 77 High Security . | . . . . . . . . . . . . . . . . . . . . . . . . . . . . . . . . . Max Security . | . . . . . . . . . . . . . . . . . . . . . . . . . . . . . . . . . Peak Influence 3031 | 10 191 51 133 159 91 . 101 32 40 . . . . 48 70 413 . . . . 160 66 195 . . . . 226 226 296 387 3031 Initial 217 | . . 36 . 5 23 . . 32 1 . . . . 9 16 . . . . . 150 56 . . . . . 150 117 122 162 217 Average 446 | 1 88 9 24 81 40 . 39 17 9 . . . . 9 26 130 . . . . 128 34 40 . . . . 159 176 178 197 2162 Influence Increases 9692 | 10 560 131 437 680 326 . 202 . 95 . . . 95 196 86 732 45 5 . . 240 120 304 . 45 . 10 378 411 257 565 3762 Destroy 0b10 Robot/C 2360 | . 340 80 260 300 140 . 40 . . . . . 80 . . 100 . . . . . . . . . . . . 100 40 . 880 Destroy 0b10 Robot/NC 395 | 10 15 15 15 45 . . 10 . 10 . . . 5 30 . 40 . 5 . . 20 . 10 . . . 10 20 50 20 30 35 Destroy Leader 496 | . 84 20 74 112 . . 22 . 2 . . . 10 10 . 20 . . . . 2 . 4 . . . . 8 18 14 8 88 Allied During Kill 166 | . . 1 . 107 27 . . . . . . . . . . . . . . . . . . . . . . . 31 . . . Successful Hack 269 | . 44 . 31 39 9 . 16 . 6 . . . . . . 37 . . . . . . . . . . . 30 6 . 41 10 Select Force Hacks 270 | . 60 . 30 . 150 . . . 30 . . . . . . . . . . . . . . . . . . . . . . . Disable Machine 630 | . 15 15 15 30 . . . . 15 . . . . 15 . 60 . . . . . . . . . . . . 150 . 105 210 Anti-Garrison Action 150 | . . . . . . . . . . . . . . . . . . . . . . . . . . . . . . . . 150 Destroy Structure 2046 | . 2 . 12 2 . . 9 . 2 . . . . 36 86 130 . . . . 8 120 50 . . . . 50 56 33 51 1399 Advance Influence 300 | . . . . . . . . . . . . . . . . . . . . . 150 . . . . . . 150 . . . . Partial Spotted 810 | . . . . . . . 45 . 30 . . . . 45 . 135 . . . . . . 75 . . . . 45 . 60 45 330 Lose Combat Pursuer 1800 | . . . . 45 . . 60 . . . . . . 60 . 210 45 . . . 60 . 165 . 45 . . 75 . 90 285 660 Influence Decreases 6661 | 10 466 225 423 633 387 . 110 90 85 12 . . 80 163 134 328 291 163 . . 80 280 109 123 65 52 10 170 401 186 467 1118 Entered New Map 1119 | . . 58 . 9 38 . . 60 1 5 . . . 6 32 . 151 31 . . . 104 . 73 15 52 . . 91 96 127 170 Time Decay 4583 | 10 446 137 284 494 329 . 90 30 74 7 . . 80 157 102 318 120 132 . . 80 96 99 50 40 . 10 170 270 70 270 618 Search Patrol Dispatched 100 | . . . . . . . . . . . . . . . . . . . . . . . . . . . . . . . . 100 Lost Part 376 | . 20 10 16 10 . . . . 10 . . . . . . 10 . . . . . . . . 10 . . . . 20 40 230 Lost Ally 360 | . . 20 . 120 20 . 20 . . . . . . . . . 20 . . . . 80 10 . . . . . 40 . 30 . Purge Threat 123 | . . . 123 . . . . . . . . . . . . . . . . . . . . . . . . . . . . . Squads Dispatched 59 | . 5 . 3 2 . . 6 . 5 . . . . 3 . 8 . . . . 2 . 3 . . . . 3 4 4 3 8 Investigation 35 | . 3 . 3 . . . 4 . 5 . . . . 2 . 5 . . . . 2 . 3 . . . . 2 . 1 1 4 Extermination 11 | . . . . . . . . . . . . . . 1 . 2 . . . . . . . . . . . 1 3 1 2 1 Reinforcement 10 | . 2 . . . . . 2 . . . . . . . . 1 . . . . . . . . . . . . 1 1 . 3 Assault . | . . . . . . . . . . . . . . . . . . . . . . . . . . . . . . . . . Garrison 3 | . . . . 2 . . . . . . . . . . . . . . . . . . . . . . . . . 1 . . Intercept . | . . . . . . . . . . . . . . . . . . . . . . . . . . . . . . . . . Searches Triggered 1 | . . . . . . . . . . . . . . . . . . . . . . . . . . . . . . . . 1 Construction Impeded . | . . . . . . . . . . . . . . . . . . . . . . . . . . . . . . . . . Haulers Reinforced 2 | . . . . . . . . . . . . . . . . . . . . . . . . . . . . . 1 1 . . Active Scanning Responses . | . . . . . . . . . . . . . . . . . . . . . . . . . . . . . . . . . Cargo Convoy Interrupts . | . . . . . . . . . . . . . . . . . . . . . . . . . . . . . . . . . Stealth | -11 -10 -10 -9 -9 -9 -9 -6 -6 -6 -6 -6 -6 -5 -5 -5 -5 -5 -5 -5 -4 -4 -4 -4 -4 -4 -4 -3 -3 -3 -2 -2 -2 --------- Run | Yrd Mat Min Mat Sto Rec Scr Fac Was Fac Low Low Zio Pro Fac Was Fac Upp Upp Zhi Pro Fac Was Fac Upp Upp War Pro Res Tes Res Qua Frg Distress Signals 10 | . 2 . 1 . . . . . . . . . . . . . . . . . . . 2 . . . . . 1 . . 4 Communications Jammed 27 | . . . . . . . . . . . . . . . . . . . . . . . . . . . . . . . . 27 Distress Signals 20 | . . . . . . . . . . . . . . . . . . . . . . . . . . . . . . . . 20 Times Spotted 389 | . 26 4 19 18 6 . 11 6 8 1 . . 7 18 4 27 3 5 . 4 4 4 33 . 3 5 2 9 5 12 27 118 Peak Tracking Total 21 | . 6 2 3 4 4 . 4 6 5 4 . . 4 5 2 7 3 5 . 4 6 2 18 . 3 5 2 9 3 4 8 21 Tactical Retreats 60 | . . . . 3 . . 2 . . . . . . 3 . 6 1 . . . 1 . 5 . 3 . . 1 . 3 8 24 ECM-based Alert Blocks 17 | . . . . . . . . . . . . . . . . . . . . . . . 6 . . . . . . . 1 10 Traps | -11 -10 -10 -9 -9 -9 -9 -6 -6 -6 -6 -6 -6 -5 -5 -5 -5 -5 -5 -5 -4 -4 -4 -4 -4 -4 -4 -3 -3 -3 -2 -2 -2 ------- Run | Yrd Mat Min Mat Sto Rec Scr Fac Was Fac Low Low Zio Pro Fac Was Fac Upp Upp Zhi Pro Fac Was Fac Upp Upp War Pro Res Tes Res Qua Frg Traps Triggered 19 | . 1 2 1 . . . 1 . 1 . . . . 1 . . . . . . 3 . . . . . . . . 1 2 6 Indirectly . | . . . . . . . . . . . . . . . . . . . . . . . . . . . . . . . . . Trap Hack Attempts . | . . . . . . . . . . . . . . . . . . . . . . . . . . . . . . . . . Triggered . | . . . . . . . . . . . . . . . . . . . . . . . . . . . . . . . . . Disarmed . | . . . . . . . . . . . . . . . . . . . . . . . . . . . . . . . . . Reprogrammed . | . . . . . . . . . . . . . . . . . . . . . . . . . . . . . . . . . Reused . | . . . . . . . . . . . . . . . . . . . . . . . . . . . . . . . . . Traps Extracted . | . . . . . . . . . . . . . . . . . . . . . . . . . . . . . . . . . Installed . | . . . . . . . . . . . . . . . . . . . . . . . . . . . . . . . . . Triggered . | . . . . . . . . . . . . . . . . . . . . . . . . . . . . . . . . . Machines | -11 -10 -10 -9 -9 -9 -9 -6 -6 -6 -6 -6 -6 -5 -5 -5 -5 -5 -5 -5 -4 -4 -4 -4 -4 -4 -4 -3 -3 -3 -2 -2 -2 ---------- Run | Yrd Mat Min Mat Sto Rec Scr Fac Was Fac Low Low Zio Pro Fac Was Fac Upp Upp Zhi Pro Fac Was Fac Upp Upp War Pro Res Tes Res Qua Frg Machines Disabled 52 | . 1 1 1 2 . . . . 1 . . . . 1 . 4 . . . . . . . . . 1 . . 10 . 7 23 Max in Single Turn 8 | . 1 1 1 1 . . . . 1 . . . . 1 . 1 . . . . . . . . . 1 . . 1 . 1 8 Garrison Access 6 | . . . . . . . . . . . . . . . . 1 . . . . 1 . 1 . . . . 1 1 . . 1 Machines Repaired . | . . . . . . . . . . . . . . . . . . . . . . . . . . . . . . . . . Machines Dismantled . | . . . . . . . . . . . . . . . . . . . . . . . . . . . . . . . . . Machines Sabotaged . | . . . . . . . . . . . . . . . . . . . . . . . . . . . . . . . . . Overloaded Fab Kills . | . . . . . . . . . . . . . . . . . . . . . . . . . . . . . . . . . Hacking | -11 -10 -10 -9 -9 -9 -9 -6 -6 -6 -6 -6 -6 -5 -5 -5 -5 -5 -5 -5 -4 -4 -4 -4 -4 -4 -4 -3 -3 -3 -2 -2 -2 --------- Run | Yrd Mat Min Mat Sto Rec Scr Fac Was Fac Low Low Zio Pro Fac Was Fac Upp Upp Zhi Pro Fac Was Fac Upp Upp War Pro Res Tes Res Qua Frg Machines Accessed 137 | . 11 2 8 11 8 3 9 . 8 . . . . 7 . 19 . 1 3 . 4 . 7 2 . 2 . 6 7 2 11 6 Terminals 65 | . 8 1 6 9 3 . 4 . . . . . . 1 . 10 . . . . 1 . 2 . . . . 2 4 2 9 3 Fabricators 6 | . . . . . . . . . 2 . . . . 2 . 2 . . . . . . . . . . . . . . . . Repair Stations 11 | . 1 . 1 2 . . . . 1 . . . . 1 . 1 . . . . . . 1 . . . . . 1 . 1 1 Recycling Units 29 | . 2 . 1 . 5 . 4 . 3 . . . . 2 . 3 . . . . 2 . 3 . . . . 2 . . . 2 Scanalyzers 6 | . . . . . . . 1 . 1 . . . . . . 1 . . . . . . . . . . . 1 1 . 1 . Garrison Access 8 | . . . . . . . . . 1 . . . . 1 . 2 . . . . 1 . 1 . . . . 1 1 . . . Total Hacks 296 | . 28 2 23 28 14 9 17 . 17 . . . . 14 . 46 . 1 13 . 5 . 12 5 . 2 . 10 15 6 21 8 Successful 202 | . 17 2 14 18 9 9 12 . 12 . . . . 5 . 26 . 1 13 . 4 . 10 5 . 2 . 10 10 5 13 5 Failed 92 | . 10 . 9 10 4 . 5 . 5 . . . . 9 . 20 . . . . 1 . 2 . . . . . 5 1 8 3 Catastrophic 8 | . 2 . . . . . . . . . . . . 4 . 1 . . . . . . . . . . . . . . 1 . Database Lockouts 2 | . 1 . . . 1 . . . . . . . . . . . . . . . . . . . . . . . . . . . Manual 130 | . 13 1 21 6 13 . 8 . 8 . . . . 6 . 24 . . . . 2 . 6 . . . . 4 2 3 9 4 Terminals 156 | . 19 1 20 19 9 . 10 . . . . . . 1 . 30 . . . . 2 . 4 . . . . 5 9 6 17 4 Fabricators 21 | . . . . . . . . . 9 . . . . 5 . 7 . . . . . . . . . . . . . . . . Repair Stations 32 | . 7 . 2 9 . . . . 2 . . . . 2 . 1 . . . . . . 3 . . . . . 3 . 2 1 Recycling Units 33 | . 2 . 1 . 5 . 4 . 4 . . . . 3 . 3 . . . . 2 . 4 . . . . 2 . . . 3 Scanalyzers 11 | . . . . . . . 3 . 1 . . . . . . 2 . . . . . . . . . . . 2 1 . 2 . Garrison Access 12 | . . . . . . . . . 1 . . . . 3 . 3 . . . . 1 . 1 . . . . 1 2 . . . Terminal Hacks 94 | . 5 2 6 9 2 9 5 . . . . . . . . 10 . 1 13 . 1 . 2 5 . 2 . 4 5 4 7 2 Record 10 | . . . . 1 . 2 . . . . . . . . . . . . 1 . . . . 4 . . . 1 . . 1 . Part Schematic 6 | . . . . . . . 1 . . . . . . . . 1 . . 4 . . . . . . . . . . . . . Robot Analysis 13 | . 1 . . . . 6 . . . . . . . . . 1 . . 4 . 1 . . . . . . . . . . . Prototype ID Bank 22 | . 4 . 4 2 2 . . . . . . . . . . 4 . . 4 . . . 1 . . . . . 1 . . . Open Door 14 | . . 1 . 5 . 1 . . . . . . . . . . . 1 . . . . . 1 . 2 . . 1 1 1 . Open DSF 1 | . . . . . . . 1 . . . . . . . . . . . . . . . . . . . . . . . . . Level Access Points 1 | . . . . . . . . . . . . . . . . . . . . . . . . . . . . . 1 . . . Branch Access Points 6 | . . . 1 . . . 1 . . . . . . . . 1 . . . . . . 1 . . . . 1 . 1 . . Recycling Unit Index 2 | . . . . . . . . . . . . . . . . . . . . . . . . . . . . 1 1 . . . Alert Level 2 | . . . . . . . . . . . . . . . . 1 . . . . . . . . . . . 1 . . . . Unreport Threat 1 | . . . 1 . . . . . . . . . . . . . . . . . . . . . . . . . . . . . Locate Traps 1 | . . . . . . . 1 . . . . . . . . . . . . . . . . . . . . . . . . . Recall Extermination 2 | . . . . . . . . . . . . . . . . . . . . . . . . . . . . . . 1 1 . Zone Layout 12 | . . 1 . 1 . . 1 . . . . . . . . 2 . . . . . . . . . . . . 1 1 4 1 Proto ID Catalog 1 | . . . . . . . . . . . . . . . . . . . . . . . . . . . . . . . . 1 Fabricator Hacks 11 | . . . . . . . . . 5 . . . . 3 . 3 . . . . . . . . . . . . . . . . Network Status 1 | . . . . . . . . . . . . . . 1 . . . . . . . . . . . . . . . . . . Load Schematic 6 | . . . . . . . . . 3 . . . . 1 . 2 . . . . . . . . . . . . . . . . Build 4 | . . . . . . . . . 2 . . . . 1 . 1 . . . . . . . . . . . . . . . . Repair Station Hacks 25 | . 6 . 2 7 . . . . 2 . . . . 1 . . . . . . . . 3 . . . . . 2 . 2 . Scan Component 14 | . 3 . 1 4 . . . . 1 . . . . 1 . . . . . . . . 2 . . . . . 1 . 1 . Repair 11 | . 3 . 1 3 . . . . 1 . . . . . . . . . . . . . 1 . . . . . 1 . 1 . Recycling Unit Hacks . | . . . . . . . . . . . . . . . . . . . . . . . . . . . . . . . . . Scanalyzer 8 | . . . . . . . 2 . 1 . . . . . . 1 . . . . . . . . . . . 2 1 . 1 . Insert Component 2 | . . . . . . . 1 . . . . . . . . . . . . . . . . . . . . 1 . . . . Analyze 2 | . . . . . . . 1 . . . . . . . . . . . . . . . . . . . . 1 . . . . Retrieve Study 4 | . . . . . . . . . 1 . . . . . . 1 . . . . . . . . . . . . 1 . 1 . Garrison Access Hacks 5 | . . . . . . . . . . . . . . . . 1 . . . . 1 . 1 . . . . 1 1 . . . Seal Access 5 | . . . . . . . . . . . . . . . . 1 . . . . 1 . 1 . . . . 1 1 . . . Unauthorized Hacks 59 | . 6 . 6 2 7 . 5 . 4 . . . . 1 . 11 . . . . 2 . 4 . . . . 3 1 1 3 3 Terminals 26 | . 4 . 5 2 2 . 1 . . . . . . . . 5 . . . . . . 1 . . . . 1 1 1 3 . Assimilate 6 | . . . . . . . . . . . . . . . . 2 . . . . . . 1 . . . . . . . 3 . Botnet 20 | . 4 . 5 2 2 . 1 . . . . . . . . 3 . . . . . . . . . . . 1 1 1 . . Fabricators 3 | . . . . . . . . . 1 . . . . . . 2 . . . . . . . . . . . . . . . . Prioritize 2 | . . . . . . . . . 1 . . . . . . 1 . . . . . . . . . . . . . . . . Recompile 1 | . . . . . . . . . . . . . . . . 1 . . . . . . . . . . . . . . . . Repair Stations 2 | . . . . . . . . . . . . . . . . 1 . . . . . . . . . . . . . . . 1 Patch 2 | . . . . . . . . . . . . . . . . 1 . . . . . . . . . . . . . . . 1 Recycling Units 28 | . 2 . 1 . 5 . 4 . 3 . . . . 1 . 3 . . . . 2 . 3 . . . . 2 . . . 2 Tunnel 9 | . 2 . 1 . 5 . . . 1 . . . . . . . . . . . . . . . . . . . . . . . Fedlink 19 | . . . . . . . 4 . 2 . . . . 1 . 3 . . . . 2 . 3 . . . . 2 . . . 2 Scanalyzers . | . . . . . . . . . . . . . . . . . . . . . . . . . . . . . . . . . Garrison Access . | . . . . . . . . . . . . . . . . . . . . . . . . . . . . . . . . . Data Cores Recovered 2 | . . . 1 . . . . . . . . . . 1 . . . . . . . . . . . . . . . . . . Used 1 | . . . 1 . . . . . . . . . . . . . . . . . . . . . . . . . . . . . Hacking Detections 71 | . 8 1 7 7 3 . 3 . 4 . . . . 5 . 11 . . . . 1 . 4 . . . . 1 4 . 10 2 Full Trace Events 6 | . . . 2 1 . . . . 1 . . . . 1 . . . . . . . . . . . . . . . . 1 . Feedback Events . | . . . . . . . . . . . . . . . . . . . . . . . . . . . . . . . . . Feedback Blocked 1 | . . . . . . . . . 1 . . . . . . . . . . . . . . . . . . . . . . . Robot Schematics Acquired 3 | . . . . . . . . . . . . . . . . . . . . . . . . . . . . . 2 . . 1 Robots Built . | . . . . . . . . . . . . . . . . . . . . . . . . . . . . . . . . . Authchips . | . . . . . . . . . . . . . . . . . . . . . . . . . . . . . . . . . Time . | . . . . . . . . . . . . . . . . . . . . . . . . . . . . . . . . . Total Robot Build Rating . | . . . . . . . . . . . . . . . . . . . . . . . . . . . . . . . . . Part Schematics Acquired 18 | . . . . . . . 2 . . . . . . . . 1 . . 4 . . . . . . . . 1 4 . . 6 Parts Built 5 | . . . . . . . . . 2 . . . . 2 . 1 . . . . . . . . . . . . . . . . Authchips 4 | . . . . . . . . . 2 . . . . 1 . 1 . . . . . . . . . . . . . . . . Time 427 | . . . . . . . . . 228 . . . . 47 . 152 . . . . . . . . . . . . . . . . Total Part Build Rating 25 | . . . . . . . . . 10 . . . . 10 . 5 . . . . . . . . . . . . . . . . Part Studies Acquired 4 | . . . . . . . . . 1 . . . . . . 1 . . . . . . . . . . . . 1 . 1 . Parts Repaired 10 | . 3 . 1 3 . . . . 1 . . . . . . . . . . . . . 1 . . . . . 1 . . . Time 468 | . 78 . 53 135 . . . . 38 . . . . . . . . . . . . . 80 . . . . . 40 . 44 . Parts Recycled . | . . . . . . . . . . . . . . . . . . . . . . . . . . . . . . . . . Recycled Matter . | . . . . . . . . . . . . . . . . . . . . . . . . . . . . . . . . . Retrieved Matter . | . . . . . . . . . . . . . . . . . . . . . . . . . . . . . . . . . Retrieved Components . | . . . . . . . . . . . . . . . . . . . . . . . . . . . . . . . . . Parts Scanalyzed 2 | . . . . . . . 1 . . . . . . . . . . . . . . . . . . . . 1 . . . . Part Schematics Acquired 2 | . . . . . . . 1 . . . . . . . . . . . . . . . . . . . . 1 . . . . Parts Damaged . | . . . . . . . . . . . . . . . . . . . . . . . . . . . . . . . . . Bothacking | -11 -10 -10 -9 -9 -9 -9 -6 -6 -6 -6 -6 -6 -5 -5 -5 -5 -5 -5 -5 -4 -4 -4 -4 -4 -4 -4 -3 -3 -3 -2 -2 -2 ------------ Run | Yrd Mat Min Mat Sto Rec Scr Fac Was Fac Low Low Zio Pro Fac Was Fac Upp Upp Zhi Pro Fac Was Fac Upp Upp War Pro Res Tes Res Qua Frg Used RIF Installer . | . . . . . . . . . . . . . . . . . . . . . . . . . . . . . . . . . Robots Hacked 2 | . . . . . . . . . . . . . . 1 . . . . . . 1 . . . . . . . . . . . Non-combat 2 | . . . . . . . . . . . . . . 1 . . . . . . 1 . . . . . . . . . . . Combat . | . . . . . . . . . . . . . . . . . . . . . . . . . . . . . . . . . Robot Hacks Applied 2 | . . . . . . . . . . . . . . 1 . . . . . . 1 . . . . . . . . . . . find_chute 2 | . . . . . . . . . . . . . . 1 . . . . . . 1 . . . . . . . . . . . Relay Couplers Released 2 | . . . . . . . . . . . . . . . . . . . . . . . . . . . . . . . . 2 Machine Destruction 2 | . . . . . . . . . . . . . . . . . . . . . . . . . . . . . . . . 2 Fabnet Peak Effective % . | . . . . . . . . . . . . . . . . . . . . . . . . . . . . . . . . . Robots Rewired 2 | . . . . . . . . . . . . . . . . . . . . . . . . . . . . . 2 . . . Allies Hacked . | . . . . . . . . . . . . . . . . . . . . . . . . . . . . . . . . . Hacks Repelled . | . . . . . . . . . . . . . . . . . . . . . . . . . . . . . . . . . Allies | -11 -10 -10 -9 -9 -9 -9 -6 -6 -6 -6 -6 -6 -5 -5 -5 -5 -5 -5 -5 -4 -4 -4 -4 -4 -4 -4 -3 -3 -3 -2 -2 -2 -------- Run | Yrd Mat Min Mat Sto Rec Scr Fac Was Fac Low Low Zio Pro Fac Was Fac Upp Upp Zhi Pro Fac Was Fac Upp Upp War Pro Res Tes Res Qua Frg Total Allies 56 | . . 1 . 10 . . . . . . . . . . 18 2 . . . . . 19 1 . . . . . 2 . 3 . Largest Group 19 | . . 1 . 10 4 3 1 . . . . . . . 18 2 2 . . . . 19 1 . . . . . 2 . 1 . Highest-Rated Group 684 | . . 31 . 88 40 24 8 . . . . . . . 638 20 20 . . . . 684 26 . . . . . 277 . 45 . Highest-Rated Ally 153 | . . 31 . 16 16 8 8 . . . . . . . 50 10 10 . . . . 50 26 . . . . . 153 . 45 . Initial UFD Resources 109 | . . . . . . . 24 42 42 46 46 46 48 48 58 58 66 66 66 70 70 84 84 90 90 90 92 92 106 109 109 109 Total Orders 1 | . . . . . . . . . . . . . . . . . . . . . . . 1 . . . . . . . . . STAY 1 | . . . . . . . . . . . . . . . . . . . . . . . 1 . . . . . . . . . Ally Attacks 335 | . . 4 . 29 21 . 2 . . . . . . . 174 . . . . . . 98 . . . . . . 7 . . . Total Damage 10032 | . . 20 . 278 226 . . . . . . . . . 4858 . . . . . . 3903 . . . . . . 747 . . . Kills 34 | . . 1 . 5 4 . . . . . . . . . 9 . . . . . . 9 . . . . . . 6 . . . Allies Corrupted 1 | . . . . . . . . . . . . . . . . . . . . . . . . . . . . . 1 . . . Allies Melted 1 | . . . . . . . . . . . . . . . . . . . . . . . . . . 1 . . . . . . Intel | -11 -10 -10 -9 -9 -9 -9 -6 -6 -6 -6 -6 -6 -5 -5 -5 -5 -5 -5 -5 -4 -4 -4 -4 -4 -4 -4 -3 -3 -3 -2 -2 -2 ------- Run | Yrd Mat Min Mat Sto Rec Scr Fac Was Fac Low Low Zio Pro Fac Was Fac Upp Upp Zhi Pro Fac Was Fac Upp Upp War Pro Res Tes Res Qua Frg Active Infowar (turns) 6914 | . . . . . . . . . . 4 . . . 384 242 768 250 356 62 120 176 214 326 118 87 222 124 344 590 145 598 1784 Optics 6678 | . . . . . . . . . . . . . . 273 242 768 250 356 62 120 176 214 326 118 87 222 124 344 590 145 598 1663 Sensors 4527 | . . . . . . . . . . 4 . . . 384 242 765 250 356 59 78 173 214 260 105 8 87 123 340 554 115 260 150 Cloaking 86 | . . . . . . . . . . . . . . . . . . . . . . . . . . . . . . . 86 . Jamming 964 | . . . . . . . . . . . . . . 2 . . . . . . . . . . . . . . . . 356 606 ECM 251 | . . . . . . . . . . . . . . . . . . . . . . . 10 . . . . . . . 117 124 Robot Analysis Total 13 | . 1 . . . . 6 . . . . . . . . . 1 . . 4 . 1 . . . . . . . . . . . Derelict Logs Recovered 7 | . . 1 . . . . . . . 1 . 2 1 . . . . . . 1 . . . 1 . . . . . . . . Drone Launches . | . . . . . . . . . . . . . . . . . . . . . . . . . . . . . . . . . Drone Recoveries . | . . . . . . . . . . . . . . . . . . . . . . . . . . . . . . . . . Exploration | -11 -10 -10 -9 -9 -9 -9 -6 -6 -6 -6 -6 -6 -5 -5 -5 -5 -5 -5 -5 -4 -4 -4 -4 -4 -4 -4 -3 -3 -3 -2 -2 -2 ------------- Run | Yrd Mat Min Mat Sto Rec Scr Fac Was Fac Low Low Zio Pro Fac Was Fac Upp Upp Zhi Pro Fac Was Fac Upp Upp War Pro Res Tes Res Qua Frg Turns Passed 15355 | 42 1155 718 994 1475 769 1732 284 76 336 72 68 211 170 435 242 768 250 356 62 120 176 214 326 118 87 222 124 344 590 145 598 2076 Spaces Moved 23698 | 23 716 498 603 728 557 1270 685 240 484 315 305 899 465 1111 359 1793 742 469 149 423 519 346 707 391 340 647 392 824 1039 429 1574 3656 Core . | . . . . . . . . . . . . . . . . . . . . . . . . . . . . . . . . . Treads 189 | 7 . 13 . 169 . . . . . . . . . . . . . . . . . . . . . . . . . . . . Legs . | . . . . . . . . . . . . . . . . . . . . . . . . . . . . . . . . . Wheels 4219 | 16 716 485 603 559 557 1270 13 . . . . . . . . . . . . . . . . . . . . . . . . . Hover 838 | . . . . . . . . . . . . . . . . . . . . . . . . . . . . . . . . 838 Flight 18452 | . . . . . . . 672 240 484 315 305 899 465 1111 359 1793 742 469 149 423 519 346 707 391 340 647 392 824 1039 429 1574 2818 Fastest Speed 5 | 100 100 115 130 130 135 135 22 22 11 11 20 20 11 14 24 11 11 11 24 11 20 24 5 20 6 5 17 5 14 6 6 7 Average Speed 42 | 118 114 126 130 158 135 135 27 22 19 19 20 20 22 23 24 23 23 24 24 23 23 24 21 23 19 19 19 19 20 12 19 24 Slowest Speed 240 | 160 115 240 130 240 135 135 135 22 22 20 20 20 98 106 24 104 24 104 98 98 24 24 24 24 24 20 20 20 21 19 23 120 Overloaded Moves 812 | . . . . . . . . . 10 26 . . 8 10 . 49 5 6 . 36 . . 88 . 26 13 . 17 . 74 84 360 Propulsion Burnouts . | . . . . . . . . . . . . . . . . . . . . . . . . . . . . . . . . . Robots Hopped 120 | . . . . . . . 4 . 4 . . . . 18 . 8 . . . . 4 . 16 . . 2 . 3 13 7 13 28 Potential Cave-ins 22 | . . . . . . . . . . . . . 4 . . . . . . . . . . . . . . . . . . 18 Cave-ins Triggered 1 | . . . . . . . . . . . . . . . . . . . . . . . . . . . . . . . . 1 Teleports 1 | . . . . . . . . . . . . . . . . . . . . . . . . . . . . . 1 . . . Exploration Rate (%) 60 | 3 91 93 34 73 93 85 20 81 11 46 52 80 57 40 91 50 76 63 61 71 11 93 23 75 63 90 62 21 85 19 92 77 Regions Visited 32 Branch Regions 19 Pre-discovered Areas 13 | . 2 . 1 . 5 . 1 . 1 . . 2 . . . . . . . . . . . 1 . . . . . . . . Known Exits Taken 16 | . . . 1 . . . . . 1 . . . . . . 1 1 1 1 1 . . 1 1 1 1 1 1 1 1 1 . Unknown Exits Taken 10 | 1 1 1 . 1 1 1 . . . 1 1 1 1 . . . . . . . . . . . . . . . . . . . Scrap Searched 29 | . . 1 . . . 11 . . . 1 1 2 5 . . . 3 1 . 1 . . . 1 1 . 1 . . . . . Spaces Dug 443 | . . . 11 . . . 9 . 2 . 1 . 88 18 . 44 22 58 . 52 4 . 33 . . . . 25 11 10 18 37 Terrain Destroyed 1117 | . . . 11 . . . 9 . 2 . 1 . 194 18 . 79 22 70 . 52 4 . 33 . . . . 25 12 11 18 556 Melee 161 | . . . . . . . 9 . 2 . 1 . 4 18 . 35 1 2 . 1 4 . 17 . . . . 21 8 10 13 15 Projectile 47 | . . . . . . . . . . . . . . . . 9 3 . . . . . . . . . . 4 4 . 5 22 AOE 908 | . . . 11 . . . . . . . . . 190 . . 35 18 68 . 51 . . 16 . . . . . . . . 519 Terrain Rammed . | . . . . . . . . . . . . . . . . . . . . . . . . . . . . . . . . . Walls Destroyed . | . . . . . . . . . . . . . . . . . . . . . . . . . . . . . . . . . Machines Disabled . | . . . . . . . . . . . . . . . . . . . . . . . . . . . . . . . . . Actions | -11 -10 -10 -9 -9 -9 -9 -6 -6 -6 -6 -6 -6 -5 -5 -5 -5 -5 -5 -5 -4 -4 -4 -4 -4 -4 -4 -3 -3 -3 -2 -2 -2 --------- Run | Yrd Mat Min Mat Sto Rec Scr Fac Was Fac Low Low Zio Pro Fac Was Fac Upp Upp Zhi Pro Fac Was Fac Upp Upp War Pro Res Tes Res Qua Frg Total 27813 | 31 927 544 743 975 565 1288 750 261 710 325 309 929 506 1231 457 2023 803 699 172 435 545 434 832 416 360 737 434 958 1367 488 1813 4746 Wait 2823 | . 112 7 72 152 . 4 14 18 209 9 4 26 12 70 58 148 43 219 5 2 9 54 106 25 18 68 39 93 240 32 172 783 Move 23451 | 22 715 497 602 727 556 1269 677 239 475 314 304 898 464 1079 358 1776 741 468 148 422 513 345 676 390 339 643 391 817 1012 414 1551 3609 Hop 94 | . . . . . . . 4 . 4 . . . . 14 . 8 . . . . 2 . 14 . . 1 . 3 13 7 9 15 Pick Up 119 | . 15 5 10 14 2 2 3 1 4 . . 4 . 8 . 3 2 . 2 . 1 1 2 . . 3 . 3 6 2 7 19 Fast Attach 84 | . 2 3 2 2 . 3 5 . 1 . . . . 7 . 1 . . 3 . . . 1 . . 5 . . 10 . 2 37 Attach 90 | . 3 3 3 1 . 1 10 . 2 1 . . 3 5 . 1 . . . . 2 . . . 1 1 . 5 4 5 10 29 Detach 77 | . 1 2 1 . . 2 3 . . . . . 3 4 . . 1 . 1 . . . . . 1 3 . 3 7 3 4 38 Swap 182 | 3 8 2 5 9 . 2 6 2 5 1 . . 4 2 2 13 11 6 9 6 3 2 9 1 1 6 1 . 14 1 15 33 Drop 156 | 3 8 3 9 22 2 5 7 1 5 . . 1 . 11 . 3 . . 4 . . 1 3 . . 6 . 2 19 1 4 36 Fire 246 | 3 63 22 39 46 5 . . . . . . . 12 . . 12 4 4 . 3 . . 1 . . . . 2 3 7 3 17 Melee 466 | . . . . . . . 21 . 5 . 1 . 8 31 38 58 1 2 . 2 15 31 20 . . 1 3 30 30 16 30 123 Ram . | . . . . . . . . . . . . . . . . . . . . . . . . . . . . . . . . . Kick . | . . . . . . . . . . . . . . . . . . . . . . . . . . . . . . . . . Crush . | . . . . . . . . . . . . . . . . . . . . . . . . . . . . . . . . . Escape Stasis 15 | . . . . 2 . . . . . . . . . . . . . . . . . . . . . . . . . . 6 7 Rewire 10 | . . . . . . . . . . . . . . . 1 . . . . . . . . . . . . . 9 . . . Trap . | . . . . . . . . . . . . . . . . . . . . . . . . . . . . . . . . . Miscellaneous . | . . . . . . . . . . . . . . . . . . . . . . . . . . . . . . . . . Route ------- -11/Scrapyard -10/Materials (discovered 4 exits: *Mat x3 / *Min) -10/Mines (discovered 3 exits: *Mat x2 / [*Sub]) -9/Materials (discovered 3 exits: [*Mat] / Min / *Sto) -9/Storage (discovered 2 exits: [*Mat] / *Rec) -9/Recycling (discovered 2 exits: [*Fac] / *Scr) -9/Scraptown (discovered 2 exits: *Fac x2) -6/Factory (discovered 3 exits: *Fac / Low x2) -6/Waste -6/Factory (discovered 2 exits: *Fac / *Low) -6/Lower Caves -6/Lower Caves (discovered 2 exits: *Fac / [*Zio]) -6/Zion -5/Proximity Caves -5/Factory (discovered 3 exits: *Upp x2 / Ext) -5/Waste -5/Factory (discovered 5 exits: *Fac / *Upp x2 / *Ext x2) -5/Upper Caves -5/Upper Caves -5/Zhirov -4/Proximity Caves -4/Factory -4/Waste -4/Factory (discovered 3 exits: *Upp x2 / Arm) -4/Upper Caves -4/Upper Caves -4/Warlord -3/Proximity Caves -3/Research (discovered 3 exits: *Res / *Tes x2) -3/Testing -2/Research (discovered 3 exits: *Acc / *Qua x2) -2/Quarantine (discovered 3 exits: *Acc / [*Sec] / *Frg) -2/Protoforge (discovered 1 exit: *Acc) History --------- Turn | Location | Event 17 | -11/Scrapyard | Discovered new exit (range 3) 43 | -11/Scrapyard | Entered Materials 307 | -10/Materials | Build established: Mutant 392 | -10/Materials | Discovered new exit (range 14) 654 | -10/Materials | Repaired Flight Unit 681 | -10/Materials | Repaired Lgt. Treads 709 | -10/Materials | Repaired Lgt. Treads 745 | -10/Materials | Central database locked down 825 | -10/Materials | Discovered new exit (range 16) 895 | -10/Materials | Discovered new exit (range 16) 1104 | -10/Materials | Discovered new exit (range 13) 1198 | -10/Materials | Entered Mines 1228 | -10/Mines | Discovered new exit (range 6) 1277 | -10/Mines | Discovered new exit (range 4) 1448 | -10/Mines | Discovered new exit (range 14) 1567 | -10/Mines | Learned 2 Materials zone layouts 1625 | -10/Mines | Received a Rocket Launcher from a helpful Derelict 1654 | -10/Mines | Received a Mining Laser from a helpful Derelict 1744 | -10/Mines | Met a Derelict who couldn't figure out how to use a Trap Extractor 1916 | -10/Mines | Entered Materials 1916 | -9/Materials | Evolved 2 slots: Utility x2 1917 | -9/Materials | Identified exit to Mines 1937 | -9/Materials | Identified exit to Storage 2019 | -9/Materials | Build established: Scavenger-Mutant 2216 | -9/Materials | Discovered new exit (range 16) 2463 | -9/Materials | Repaired Corrupted Hacking Suite 2910 | -9/Materials | Entered Storage 3162 | -9/Storage | Assisted by bots powering up and referring to "LRC-V3" 3234 | -9/Storage | Repaired Corrupted Hardlight Generator 3285 | -9/Storage | Repaired Beamcaster 3466 | -9/Storage | Build established: Commander-Mutant 3637 | -9/Storage | Lost 3 allies 3726 | -9/Storage | Used back door to open Recycling access 3726 | -9/Storage | Discovered new exit (range 5) 3845 | -9/Storage | Repaired Hrd. Light Armor Plating 4102 | -9/Storage | Discovered new exit (range 16) 4236 | -9/Storage | Garrison activated, responded to threat 4385 | -9/Storage | Entered Recycling 4385 | -9/Recycling | Accompanied by 4 allies 4783 | -9/Recycling | Discovered new exit (range 16) 5046 | -9/Recycling | Build established: Mutant 5119 | -9/Recycling | Scanned before Scraplab entrance 5139 | -9/Recycling | Entered Scraplab 5150 | -9/Recycling | Discovered new exit (range 3) 5154 | -9/Recycling | Entered Scraptown 5154 | -9/Scraptown | Accompanied by 3 allies 5438 | -9/Scraptown | Visited IN-MT5's Study 5464 | -9/Scraptown | Visited Bundlers 5586 | -9/Scraptown | Visited Cave Peace 5672 | -9/Scraptown | Discovered new exit (range 11) 5746 | -9/Scraptown | Heard Great Nut preacher, LISTEN AND RECITE! 5997 | -9/Scraptown | Visited SPCMW 6015 | -9/Scraptown | Visited Symbiants 6023 | -9/Scraptown | Visited Red Mages 6093 | -9/Scraptown | Visited UFD Registry 6093 | -9/Scraptown | Registered with UFD as "Bioparser" 6142 | -9/Scraptown | Visited Science Guys 6163 | -9/Scraptown | Visited Sword Containment 6196 | -9/Scraptown | Visited Botcube Research 6215 | -9/Scraptown | Visited Cartography Club 6324 | -9/Scraptown | Visited Analyses Database 6425 | -9/Scraptown | Found Prototype Slashing Weapon 6425 | -9/Scraptown | Identified Companion Sword 6497 | -9/Scraptown | Visited DA-N13 Charitable Foundation 6502 | -9/Scraptown | Found DCF Scrap (29 items) 6543 | -9/Scraptown | Visited Chapter 10 6567 | -9/Scraptown | Visited LU-1G1's Boring Crew 6586 | -9/Scraptown | Visited Scrap Suit Storage 6810 | -9/Scraptown | Met Optimus 6810 | -9/Scraptown | Accepted into 0bPrime 6879 | -9/Scraptown | Discovered new exit (range 5) 6886 | -9/Scraptown | Entered Factory 6886 | -6/Factory | Accompanied by 1 ally 6886 | -6/Factory | Evolved 6 slots: Propulsion x4, Utility x2 6986 | -6/Factory | Discovered new exit (range 10) 7004 | -6/Factory | Loaded intel: 8 recycling unit locations 7006 | -6/Factory | Learned location of Protoforge (-2) 7038 | -6/Factory | Spotted B-75 Beast 7136 | -6/Factory | Identified exit to Lower Caves 7170 | -6/Factory | Manually triggered Chute Trap 7170 | -6/Factory | Sucked down chute 7170 | -6/Factory | Entered Waste 7192 | -6/Waste | Spotted C-40 Crusher 7195 | -6/Waste | Spotted C-40 Crusher 7196 | -6/Waste | Spotted C-40 Crusher 7213 | -6/Waste | Build established: Hacker-Sprinter 7225 | -6/Waste | Spotted C-40 Crusher 7225 | -6/Waste | Spotted C-40 Crusher 7229 | -6/Waste | Spotted C-40 Crusher 7236 | -6/Waste | Discovered new exit (range 14) 7238 | -6/Waste | Found Prototype Device 7238 | -6/Waste | Identified Exp. Focal Shield 7246 | -6/Waste | Entered Factory 7326 | -6/Factory | Fabricated Cld. Cesium-ion Thruster (x1) 7404 | -6/Factory | Fabricated Cld. Cesium-ion Thruster (x1) 7472 | -6/Factory | Loaded intel: 8 recycling unit locations 7533 | -6/Factory | Repaired Cesium-ion Thruster 7536 | -6/Factory | Discovered new exit (range 5) 7546 | -6/Factory | Discovered exit to Lower Caves (range 5) 7582 | -6/Factory | Entered Lower Caves 7586 | -6/Lower Caves | Learned Factory terminal intel 7651 | -6/Lower Caves | Discovered new exit (range 16) 7654 | -6/Lower Caves | Entered another Lower Caves area 7658 | -6/Lower Caves | Discovered new exit (range 12) 7677 | -6/Lower Caves | Spotted B-75 Beast 7713 | -6/Lower Caves | Discovered new exit (range 8) 7722 | -6/Lower Caves | Entered Zion 7725 | -6/Zion | Given the Hacking Drone Bay 7725 | -6/Zion | Found Prototype Device 7734 | -6/Zion | Found CR-A16's Pointy Stick 7737 | -6/Zion | System corruption cleaned by Quarantine Array 7745 | -6/Zion | Discovered new exit (range 16) 7798 | -6/Zion | Learned Factory security intel 7800 | -6/Zion | Learned Factory emergency access door positions 7801 | -6/Zion | Learned 8 Factory zone layouts 7933 | -6/Zion | Entered Proximity Caves 7976 | -5/Proximity Caves | Spotted B-75 Beast 8101 | -5/Proximity Caves | Learned 12 Factory zone layouts 8101 | -5/Proximity Caves | Discovered new exit (range 11) 8103 | -5/Proximity Caves | Entered Factory 8103 | -5/Factory | Evolved 2 slots: Utility x2 8104 | -5/Factory | Identified exit to Extension 8104 | -5/Factory | Identified exit to Upper Caves 8107 | -5/Factory | Loaded intel: 28 terminal locations 8119 | -5/Factory | Loaded intel: 8 recycling unit locations 8361 | -5/Factory | Fabricated Jamming Amplifier (x2) 8538 | -5/Factory | Manually triggered Chute Trap 8538 | -5/Factory | Sucked down chute 8538 | -5/Factory | Entered Waste 8546 | -5/Waste | Spotted C-40 Crusher 8547 | -5/Waste | Spotted C-40 Crusher 8551 | -5/Waste | Spotted C-40 Crusher 8560 | -5/Waste | Warlord forces began an assault 8563 | -5/Waste | Allies destroyed C-40 Crusher 8572 | -5/Waste | Spotted C-40 Crusher 8581 | -5/Waste | Allies destroyed C-40 Crusher 8593 | -5/Waste | Allies destroyed C-40 Crusher 8602 | -5/Waste | Spotted C-40 Crusher 8605 | -5/Waste | Allies destroyed C-40 Crusher 8610 | -5/Waste | Spotted C-40 Crusher 8613 | -5/Waste | Allies destroyed C-40 Crusher 8643 | -5/Waste | Lost 3 allies 8657 | -5/Waste | Discovered new exit (range 12) 8667 | -5/Waste | Found Prototype Launcher 8667 | -5/Waste | Identified Com. Tesla Bomb Launcher 8708 | -5/Waste | Build established: Hacker-Scout 8780 | -5/Waste | Identified exit to Factory 8780 | -5/Waste | Entered Factory 8796 | -5/Factory | Murdered 15 allies 8853 | -5/Factory | Loaded intel: 8 recycling unit locations 9186 | -5/Factory | Fabricated Cld. Cesium-ion Thruster? 9254 | -5/Factory | Watched by a mysterious "MATRIX" hacker. 9367 | -5/Factory | Spotted B-75 Beast 9428 | -5/Factory | Discovered new exit (range 17) 9466 | -5/Factory | Identified exit to Factory 9548 | -5/Factory | Entered Upper Caves 9548 | -5/Upper Caves | Accompanied by 2 allies 9645 | -5/Upper Caves | Encountered a Warlord checkpoint 9797 | -5/Upper Caves | Discovered new exit (range 8) 9798 | -5/Upper Caves | Identified exit to Upper Caves 9798 | -5/Upper Caves | Entered another Upper Caves area 9902 | -5/Upper Caves | Discovered new exit (range 20) 10153 | -5/Upper Caves | Identified exit to Zhirov 10154 | -5/Upper Caves | Entered Zhirov 10154 | -5/Zhirov | Discovered new exit (range 3) 10159 | -5/Zhirov | Met Zhirov 10166 | -5/Zhirov | Zhirov requested help retrieving the SGEMP Prototype 10169 | -5/Zhirov | Found Alien Artifact 10169 | -5/Zhirov | Identified Integrated Dissipator 10169 | -5/Zhirov | Installed Integrated Dissipator, increased core heat dissipation (+20) 10174 | -5/Zhirov | Found Alien Artifact 10209 | -5/Zhirov | Identified exit to Proximity Caves 10216 | -5/Zhirov | Entered Proximity Caves 10273 | -4/Proximity Caves | Attracted the attention of an 0b10 checkpoint 10291 | -4/Proximity Caves | Spotter reported a threat 10334 | -4/Proximity Caves | Discovered exit to Factory (range 10) 10336 | -4/Proximity Caves | Entered Factory 10336 | -4/Factory | Evolved 2 slots: Propulsion x1, Utility x1 10337 | -4/Factory | Identified exit to Armory 10440 | -4/Factory | Loaded intel: 8 recycling unit locations 10512 | -4/Factory | Manually triggered Chute Trap 10512 | -4/Factory | Sucked down chute 10512 | -4/Factory | Entered Waste 10514 | -4/Waste | Spotted C-40 Crusher 10515 | -4/Waste | Spotted C-40 Crusher 10520 | -4/Waste | Spotted C-40 Crusher 10525 | -4/Waste | Warlord forces began an assault 10528 | -4/Waste | Allies destroyed C-40 Crusher 10547 | -4/Waste | Spotted C-40 Crusher 10551 | -4/Waste | Spotted C-40 Crusher 10568 | -4/Waste | Allies destroyed C-40 Crusher 10581 | -4/Waste | Allies destroyed C-40 Crusher 10598 | -4/Waste | Spotted C-40 Crusher 10608 | -4/Waste | Allies destroyed C-40 Crusher 10617 | -4/Waste | Discovered new exit (range 22) 10626 | -4/Waste | Lost 7 allies 10726 | -4/Waste | Identified exit to Factory 10726 | -4/Waste | Entered Factory 10745 | -4/Factory | Murdered 12 allies 10823 | -4/Factory | Repaired Cld. Cesium-ion Thruster? 10894 | -4/Factory | Identified exit to Upper Caves 10916 | -4/Factory | Loaded intel: 8 recycling unit locations 11052 | -4/Factory | Entered Upper Caves 11155 | -4/Upper Caves | Entered an active Warlord outpost 11157 | -4/Upper Caves | Learned Factory trap positions 11157 | -4/Upper Caves | Learned Research trap positions 11157 | -4/Upper Caves | Learned Extension trap positions 11157 | -4/Upper Caves | Learned Extension security intel 11168 | -4/Upper Caves | Discovered new exit (range 8) 11170 | -4/Upper Caves | Identified exit to Upper Caves 11170 | -4/Upper Caves | Entered another Upper Caves area 11181 | -4/Upper Caves | Attracted the attention of an 0b10 checkpoint 11213 | -4/Upper Caves | Spotted B-86 Titan 11254 | -4/Upper Caves | Discovered new exit (range 16) 11257 | -4/Upper Caves | Identified exit to Warlord 11257 | -4/Upper Caves | Entered Warlord 11258 | -4/Warlord | Forged Quantum Companion 11286 | -4/Warlord | Visited the Vortex Lab 11287 | -4/Warlord | Found Prototype Energy Cannon 11287 | -4/Warlord | Identified Vortex Driver 11290 | -4/Warlord | Found Prototype Energy Gun 11290 | -4/Warlord | Identified Vortex Rifle 11293 | -4/Warlord | Found Vortex Driver 11308 | -4/Warlord | Warlord's base attacked by MAIN.C 11356 | -4/Warlord | Found Prototype Device 11356 | -4/Warlord | Identified Minesniffer Drone Bay 11419 | -4/Warlord | Found Prototype Device 11419 | -4/Warlord | Identified Exp. Phase Shifter 11423 | -4/Warlord | Found Prototype Processor 11423 | -4/Warlord | Identified Exp. Target Analyzer 11472 | -4/Warlord | Opened side exit 11478 | -4/Warlord | Discovered new exit (range 9) 11479 | -4/Warlord | Identified exit to Proximity Caves 11479 | -4/Warlord | Entered Proximity Caves 11559 | -3/Proximity Caves | Spotter reported a threat 11600 | -3/Proximity Caves | Discovered new exit (range 18) 11603 | -3/Proximity Caves | Identified exit to Research 11603 | -3/Proximity Caves | Entered Research 11603 | -3/Research | Evolved 2 slots: Propulsion x1, Utility x1 11604 | -3/Research | Loaded intel: 62 trap records 11704 | -3/Research | Identified exit to Testing 11708 | -3/Research | Discovered new exit (range 21) 11865 | -3/Research | Loaded intel: 5 recycling unit locations 11947 | -3/Research | Entered Testing 11958 | -3/Testing | Rewired PY-CAE9MLENKY 11982 | -3/Testing | Rewired PD-U7X8RUOPVY 12060 | -3/Testing | Repaired Cold Fusion Reactor 12158 | -3/Testing | Identified Transdimensional Reconstructor 12158 | -3/Testing | Warped through subspace 12173 | -3/Testing | Found Prototype Device 12173 | -3/Testing | Identified AEGIS Remote Shield 12260 | -3/Testing | Found Prototype Energy Gun 12260 | -3/Testing | Identified Tachyon Dispersion Ray 12361 | -3/Testing | Found Prototype Protection 12361 | -3/Testing | Identified Med. Regenerative Plating 12405 | -3/Testing | Identified exit to Research 12418 | -3/Testing | Spotted Striker 12419 | -3/Testing | Spotted Striker 12463 | -3/Testing | Found Prototype Energy Gun 12463 | -3/Testing | Identified Hyp. EM Gauss Rifle 12523 | -3/Testing | Found Prototype Ballistic Gun 12523 | -3/Testing | Identified Hyp. Multirail 12537 | -3/Testing | Entered Research 12537 | -2/Research | Evolved 2 slots: Power x1, Weapon x1 12591 | -2/Research | Spotted B-90 Cyclops 12611 | -2/Research | Identified exit to Quarantine 12622 | -2/Research | Discovered new exit (range 13) 12670 | -2/Research | Garrison activated, responded to threat 12679 | -2/Research | Spotted B-90 Cyclops 12682 | -2/Research | Entered Quarantine 12696 | -2/Quarantine | Found Alien Artifact 12696 | -2/Quarantine | Identified Phase Redirector 12736 | -2/Quarantine | Found Prototype Processor 12745 | -2/Quarantine | Identified Exp. Signal Interpreter 12934 | -2/Quarantine | Found Alien Artifact 12943 | -2/Quarantine | Identified Subatomic Replicator 12943 | -2/Quarantine | Forged Prototype Slashing Weapon 12971 | -2/Quarantine | Spotted Alpha 7 12980 | -2/Quarantine | Found Alien Artifact 13050 | -2/Quarantine | Build established: Hacker-Ninja 13088 | -2/Quarantine | Found Alien Launcher 13133 | -2/Quarantine | Cryocooling Duct disabled 13141 | -2/Quarantine | Cryocooling Duct disabled 13148 | -2/Quarantine | Ambient heat levels rising (+20) 13148 | -2/Quarantine | Non-combat units ordered to evacuate 13156 | -2/Quarantine | Ambient heat levels rising (+20) 13156 | -2/Quarantine | Combat units ordered to evacuate 13201 | -2/Quarantine | Targeted by mysterious "MATRIX" hacker. 13249 | -2/Quarantine | Discovered new exit (range 10) 13251 | -2/Quarantine | Identified exit to Access 13256 | -2/Quarantine | Quarantine Guard activated 13261 | -2/Quarantine | Spotted Fortress 13272 | -2/Quarantine | Discovered new exit (range 5) 13272 | -2/Quarantine | Discovered new exit (range 6) 13273 | -2/Quarantine | Identified exit to Protoforge 13280 | -2/Quarantine | Entered Protoforge 13381 | -2/Protoforge | Spotted Hotshot 13387 | -2/Protoforge | Spotted AP7-3 13388 | -2/Protoforge | Spotted AP7-3 13496 | -2/Protoforge | Spotted B-90 Cyclops 13500 | -2/Protoforge | Superfortress began startup sequence 13508 | -2/Protoforge | Spotted Hotshot 13510 | -2/Protoforge | Spotted Hotshot 13530 | -2/Protoforge | Search patrols dispatched 13554 | -2/Protoforge | Spotted Hotshot 13571 | -2/Protoforge | Found Prototype Protection 13571 | -2/Protoforge | Identified Cep. Core Shell 13604 | -2/Protoforge | Spotted EXE-6 13604 | -2/Protoforge | Spotted EXE-6 13608 | -2/Protoforge | Spotted SKR-2 13608 | -2/Protoforge | Spotted SKR-2 13619 | -2/Protoforge | UFD initiated attack on Protoforge (Readiness: High) 13619 | -2/Protoforge | Loaded intel: 3 recycling unit locations 13647 | -2/Protoforge | Identified Sigix Terminator 13655 | -2/Protoforge | Optimus greeted in Protoforge 13687 | -2/Protoforge | Lost 7 allies 13699 | -2/Protoforge | Spotted EXE-6 13699 | -2/Protoforge | Spotted EXE-6 13725 | -2/Protoforge | Identified Terrabomb 13725 | -2/Protoforge | Used Terrabomb 13739 | -2/Protoforge | Fired Sigix Terminator 13739 | -2/Protoforge | Additional patrols dispatched to research labs 13798 | -2/Protoforge | Destroyed 12 combat bots 13814 | -2/Protoforge | Lost 3 allies 13846 | -2/Protoforge | Found UFD Drillbomb 13864 | -2/Protoforge | Spotted Striker 13864 | -2/Protoforge | Spotted Striker 13873 | -2/Protoforge | Spotted Executioner 13886 | -2/Protoforge | Spotted Executioner 13906 | -2/Protoforge | Spotted Executioner 13910 | -2/Protoforge | Spotted Striker 13963 | -2/Protoforge | Spotted Hotshot 13964 | -2/Protoforge | Spotted Hotshot 13964 | -2/Protoforge | Spotted Hotshot 13965 | -2/Protoforge | Spotted Hotshot 13966 | -2/Protoforge | Destroyed Hotshot 13967 | -2/Protoforge | Discovered exit to Access (range 22) 13967 | -2/Protoforge | Spotted Decapitator 13967 | -2/Protoforge | Spotted Decapitator 13975 | -2/Protoforge | Spotted Striker 13983 | -2/Protoforge | UFD reported confirmed Drillbomb installation 13986 | -2/Protoforge | Spotted Overlord 13986 | -2/Protoforge | Spotted Executioner 13989 | -2/Protoforge | Spotted Executioner 14041 | -2/Protoforge | Lost 3 allies 14051 | -2/Protoforge | P-80 Master assimilated allied 02F51-D 14080 | -2/Protoforge | Spotted V257-n 14087 | -2/Protoforge | Found Prototype Flight Unit 14087 | -2/Protoforge | Identified Cep. Fieldthrust Drive 14121 | -2/Protoforge | Spotted V125-p 14129 | -2/Protoforge | Destroyed Hotshot 14134 | -2/Protoforge | Spotted Decapitator 14139 | -2/Protoforge | Spotted Immortal 14139 | -2/Protoforge | Spotted Immortal 14139 | -2/Protoforge | Spotted V915-s 14139 | -2/Protoforge | Spotted V272-e 14139 | -2/Protoforge | Spotted V402-l 14143 | -2/Protoforge | Found Femtoactuators 14154 | -2/Protoforge | Destroyed Striker 14178 | -2/Protoforge | Spotted Executioner 14178 | -2/Protoforge | Spotted Executioner 14193 | -2/Protoforge | Found Prototype Device 14205 | -2/Protoforge | Spotted Immortal 14205 | -2/Protoforge | Spotted Immortal 14205 | -2/Protoforge | Spotted Decapitator 14205 | -2/Protoforge | Spotted Decapitator 14205 | -2/Protoforge | Spotted Decapitator 14205 | -2/Protoforge | Spotted Decapitator 14278 | -2/Protoforge | Spotted V411-e 14279 | -2/Protoforge | Found Cep. Antigrav Storage Unit 14283 | -2/Protoforge | Identified Crosscalibrator 14286 | -2/Protoforge | Found Cep. Chromion Battery 14287 | -2/Protoforge | Found Prototype Storage 14287 | -2/Protoforge | Identified Cep. NT7 Matterbank 14304 | -2/Protoforge | Destroyed Decapitator 14321 | -2/Protoforge | UFD reported confirmed Drillbomb installation 14322 | -2/Protoforge | Destroyed Decapitator 14323 | -2/Protoforge | Destroyed Decapitator 14325 | -2/Protoforge | Destroyed Decapitator 14357 | -2/Protoforge | Spotted V133-d 14357 | -2/Protoforge | Spotted V737-l 14357 | -2/Protoforge | Spotted V717-h 14380 | -2/Protoforge | Spotted V592-c 14393 | -2/Protoforge | Destroyed V717-h 14398 | -2/Protoforge | Core integrity fell below 50% 14401 | -2/Protoforge | Destroyed V737-l 14416 | -2/Protoforge | Found Med. Regenerative Plating 14435 | -2/Protoforge | Destroyed V592-c 14437 | -2/Protoforge | Destroyed V133-d 14439 | -2/Protoforge | Found Cep. Combat Aerolev Unit 14443 | -2/Protoforge | Found Cep. Combat Aerolev Unit 14445 | -2/Protoforge | Found Cep. Combat Aerolev Unit 14448 | -2/Protoforge | Found Cep. Combat Aerolev Unit 14451 | -2/Protoforge | Found Cep. Gyrokinetic System 14454 | -2/Protoforge | Found Cep. Gyrokinetic System 14458 | -2/Protoforge | Lost 8 parts (1p5n2u) 14465 | -2/Protoforge | Found Prototype Processor 14465 | -2/Protoforge | Identified Exp. Armor Integrity Analyzer 14473 | -2/Protoforge | Forge Plexus network access discovered 14493 | -2/Protoforge | Found Cep. XC Strikerail 14502 | -2/Protoforge | Found Faulty Cep. XC Strikerail 14657 | -2/Protoforge | Found Faulty Cep. Deflector Sword 14662 | -2/Protoforge | Found Faulty Cep. Deflector Sword 14722 | -2/Protoforge | Build established: Scavenger-Mutant 14833 | -2/Protoforge | Spotted Decapitator 14833 | -2/Protoforge | Spotted Decapitator 14833 | -2/Protoforge | Spotted Decapitator 14833 | -2/Protoforge | Spotted V137-y 14834 | -2/Protoforge | Spotted V877-p 14845 | -2/Protoforge | Found Exp. Remote Shield 14851 | -2/Protoforge | Found Faulty Cep. RG22 Armor 14853 | -2/Protoforge | Found Faulty Cep. RG22 Armor 14915 | -2/Protoforge | Found Faulty Cep. Energy Mantle 14918 | -2/Protoforge | Found Faulty Cep. Reaction Jets 14920 | -2/Protoforge | Found Faulty Cep. Energy Mantle 15010 | -2/Protoforge | Found Faulty Cep. RG22 Armor 15077 | -2/Protoforge | Build established: Scavenger-Gladiator 15083 | -2/Protoforge | UFD reported confirmed Drillbomb installation 15145 | -2/Protoforge | Found Cep. Combat Aerolev Unit 15146 | -2/Protoforge | UFD reported confirmed Drillbomb installation 15146 | -2/Protoforge | Found Cep. Gyrokinetic System 15161 | -2/Protoforge | UFD reported confirmed Drillbomb installation 15163 | -2/Protoforge | Spotted Decapitator 15163 | -2/Protoforge | Spotted Decapitator 15163 | -2/Protoforge | Spotted Decapitator 15181 | -2/Protoforge | Found Femtoactuators 15185 | -2/Protoforge | Spotted V311-y 15188 | -2/Protoforge | Found Cep. Melee Reflex Suite 15203 | -2/Protoforge | Core integrity fell below 20% 15225 | -2/Protoforge | Destroyed V915-s 15269 | -2/Protoforge | Found Cep. Core Shell 15274 | -2/Protoforge | Destroyed Decapitator 15292 | -2/Protoforge | Destroyed Decapitator 15300 | -2/Protoforge | Destroyed Decapitator 15309 | -2/Protoforge | Spotted Striker 15311 | -2/Protoforge | Spotted Striker 15312 | -2/Protoforge | Crushed by falling debris 15313 | -2/Protoforge | System corruption reached 10% 15330 | -2/Protoforge | Spotted Executioner 15333 | -2/Protoforge | Spotted Executioner 15339 | -2/Protoforge | Spotted Striker 15339 | -2/Protoforge | Spotted Executioner 15343 | -2/Protoforge | Lost 8 parts (1p1n6u) 15345 | -2/Protoforge | Spotted Executioner 15346 | -2/Protoforge | Spotted Striker 15356 | -2/Protoforge | Destroyed by Striker with Compact Linear Accelerator Last Messages --------------- effect. 15353_ 02FCK-D knocked back. 15354_ 02FCK-D system terminally corrupted. 15354_ Redirected attack with Superquantum Companion. Superquantum Companion: "Batter up!" 15354_ Slug penetrates Striker. 15354_ Striker suffers critical hit (Destroy). 15354_ Striker destroyed. 15354_ Penetrated by Slug. 15355_ 02F29-K heat damages Mak. Thermal Plating. 15355_ N-04 Retriever collects Corrupted Scrap Suit. 15355_ N-04 Retriever collects Imp. Target Analyzer. 15355_ B-74 Champion Med. Treads blasted off. 15355_ B-74 Champion destroyed. 15356_ N-04 Retriever collects Hvy. Armor Plating. Map ----- +----------------------------------------------------+ | ########" "" " " " "" " "" % | | ########" ""!=!" " " "" "" "" """" | | / [%%" " " "" " "" | | ###+"""[=" /% % "" " " | | " "" "" ^^""""""" " " " ![" | | " """"+"""" " " "" % | | # "T " "" " " "" " % | | # """ " """ """""" " " """ "" % | | #####/######""" """ " " " | | ### #### " """ " " " "" | | ###""" #####% "" " " ""["" " | | ###"" ### ## " " " %"" | | # #""" ##"" #"""%;;" " """" % | | #""" " %# " """" % | | "![!%!%% % ; " " | | !!=*!![*%! % % ;=;;#;;"# ##### "" " | | %" !%=%!! K %; ####???#%% " | | %%%%=!% "! % ; " #????;%% " "" | | " % !%="% %% %% # #####; "" "" " | | %[ %%% %/ % % %; % ; # ; " "" " | | !%% %!%" %% [%% %; # "" " "" | | %%% %% % %% % %; %e !; %;%% # "" " " | | "%" "%%%%"% ;;% ; ;;%;;%%%% %% % "" " " | | %% %"%%%%%%%n%%%%%n%%%%%%%n%%%/%% %%% " | | % %% %%% %%%%%%%%SS%%%%%%&E/%%% %% " " | | % &%%%"%%%% %%%m%%%=/%SS%@%%E%%EE%%%% %%n " " | | %% %" %;;;%%;%;%&%%n%;%;%%%&#%%& %&%% "" " | | ""% %!]!! %%=% %%==% % ! [%&#%A """ " " | | """"% "! !! "/"==!*! =![=!E""% "%""" " " | | """"! % " %%" %%;[!!!"*; # %%" %% " " | | """" ! "" " ; == ; ## # # ! %= & " | | [%!! % % ; " " ; ? #?# % = %! % | | =!* #" ; ; ?#?# """"""&% % | | ####!=!!! ;##;;#;## #??# """ " %" | | ####!= ## ########## #??# " %% "= | | ##??##*## ##????????# ??# %[ = | | ##??## ######;;#"##?????????#??# "" "" *!* | | ##??## ############????????????# "" ""% " | | ###### ##??????????????????????# "" """ % | | ######[##??????????????????????# " " | | # *[=##??????????????????????# " | | # "" ##??????????????????????# " " """ | | # R=##??????????????????????# " """ | | ^+ ""[##??????????????????????# " " | | # ##??????????????????????# " " "" " | | # ##??????????????????????# | | ###############????????????????# "" " " " | | ###############????????????????# "" "" " | | # ##????????????????# " "" | | # ##????????????????# "" "" " | +----------------------------------------------------+ Best States ------------- Heat Dissipation 105 Coolant Potential 80 Energy Generation 41 Energy Capacity 2240 Matter Stores 300 Matter Capacity 300 Sight Range 23 Robot Scan Range 16 Terrain Scan Density 10 ECM Strength 2 Jamming Range 16 Cloak Strength 3 Corruption Containment 12 Armor Coverage 300 Resistance: KI 20 Core Shielding 90 Melee Speed Boost 50 Phase Shifting 20 Evasion (%) 94 Targeting Accuracy 6 Melee Accuracy 8 Core Analysis 6 Armor Integrity Analysis 50 Recoil Reduction 2 Offensive Hacking 44 Defensive Hacking 10 Authchip Count 2 Item Schematics ----------------- Cld. Cesium-ion Thruster | -6/Factory | Scanalyzed Jamming Amplifier | -6/Factory | Hacked Cld. VTOL Module | -5/Factory | Hacked Assault Drone Bay | -5/Zhirov | Free Exp. Heat Sink | -5/Zhirov | Free Exp. Optical Array | -5/Zhirov | Free Imp. Arc Thrower | -5/Zhirov | Free Cld. Nuclear Pulse Thruster | -3/Research | Scanalyzed Cld. Field Propulsion Drive | -3/Testing | Archive Plasma Sword | -3/Testing | Archive Adv. Micro-nuke Launcher | -3/Testing | Archive Enh. Flexi-carbon Leg | -3/Testing | Archive Neutron Missile Launcher | -2/Protoforge | Archive Graviton Cannon | -2/Protoforge | Archive Exp. Thermal Shield | -2/Protoforge | Archive Hvy. Dispersion Rifle | -2/Protoforge | Archive Exp. Weapon Cycler | -2/Protoforge | Archive Exp. Signal Interpreter | -2/Protoforge | Archive Robot Schematics ------------------ P-80 Master | -3/Testing | Archive A-27 Freighter | -3/Testing | Archive K-01 Serf | -2/Protoforge | Archive Fabricated ------------ Cld. Cesium-ion Thruster | x1 | -6/Factory | Authchip Cld. Cesium-ion Thruster | x1 | -6/Factory | Authchip Jamming Amplifier | x2 | -5/Factory | Authchip Cld. Cesium-ion Thruster | x1 | -5/Factory | Authchip Repaired ---------- Flight Unit | 50% | -10/Materials Lgt. Treads | 64% | -10/Materials Lgt. Treads | 68% | -10/Materials Hacking Suite | 50% | -9/Materials | Corrupted Hardlight Generator | 66% | -9/Storage | Corrupted Beamcaster | 51% | -9/Storage Hrd. Light Armor Plating | 66% | -9/Storage Cesium-ion Thruster | 64% | -6/Factory Cld. Cesium-ion Thruster | 51% | -4/Factory Cold Fusion Reactor | 38% | -3/Testing Studied --------- Hvy. Rocket Launcher | -6/Factory | Hacked Nuclear Pulse Array | -5/Factory | Hacked Impulse Thruster Array | -3/Testing | Hacked Lgt. Quantum Reactor | -2/Quarantine | Hacked Alien Tech Used ----------------- Integrated Dissipator Transdimensional Reconstructor Phase Redirector Subatomic Replicator Sigix Terminator Terrabomb Achievements -------------- Ambidextrous Friends Forever Martial Artist UFD MVP Challenges ------------ None Game ------ Seed StrikeBladeRedistributor Manual? 0 Play Time 06:40:03 Cumulative 273.3 hours Start 2026.05.02 @ 17:01:29 End 2026.05.03 @ 01:54:56 Sessions 3 Manual Loads 0 Difficulty Rogue Special Mode None Game No. 144 Rogue 144 Adventurer 0 Explorer 0 Win Type - Total 9 Types 5/0/2/1/0/0/0/1/0/0 Lore% 76 Gallery% 67 Achievement% 59 Wizard Run 0 Options --------- Layout 2 ASCII 0 Keyboard 1 Movement Arrows Keybinds 0 Fullscreen 2 Font 24/Terminus Map View 50x44 Zoom Use 0% Tactical HUD 1 Map Filters NONE Filters NONE Steam 1 RUN: db2d52b6-6e70-4afd-a17c-ea9ac55eb917